Workbook

Sheet 采购清单 (hidden)
A1: 东莞市众源环境投资有限公司五金材料及工器具2025年度采购清单及预算表
A3: 序号 | B3: 物资名称 | C3: 物资类别 | D3: 品牌 | E3: 规格型号 | F3: 合计暂定数量 | G3: 单位 | H3: 盛佰 单价（元） | I3: 五金经营部（元） | J3: 广辉 单价（元） | K3: 综合不含税单价（元） | L3: 税率（13%） | M3: 预算金额（元） | N3: 净水24年预算 | O3: 不含税单价（元）2 | P3: 税率（13%）2 | Q3: 预算金额（元）2 | R3: 预算金额（元）3 | S3: 预算金额（元）4
A4: =ROW()-2 -> 2 | B4: 槽钢 | C4: 五金材料 | D4: 任意品牌 | E4: 碳钢材质，国标尺寸 | F4: 100 | G4: 公斤 | H4: 12 | I4: 9.60 | J4: 8.40 | K4: 3.30 | L4: =K4*0.13 -> 0.43 | M4: =F4*K4+表2[[#This Row],[合计暂定数量]]*表2[[#This Row],[税率（13%）]] -> 372.85 | N4: 12.65 | O4: =IF(K4>N4,N4,K4) -> 3.30 | P4: =O4*0.13 -> 0.43 | Q4: =F4*O4+表2[[#This Row],[合计暂定数量]]*表2[[#This Row],[税率（13%）]] -> 372.85 | R4: =IF(K4>N4,N4,0) -> 0.00 | S4: =N4-K4 -> 9.35
A5: =ROW()-2 -> 3 | B5: 角钢 | C5: 五金材料 | D5: 任意品牌 | E5: 碳钢材质，国标尺寸 | F5: 100 | G5: 公斤 | H5: 12 | I5: 9.60 | J5: 8.40 | K5: 3.37 | L5: =K5*0.13 -> 0.44 | M5: =F5*K5+表2[[#This Row],[合计暂定数量]]*表2[[#This Row],[税率（13%）]] -> 380.87 | N5: 12.65 | O5: =IF(K5>N5,N5,K5) -> 3.37 | P5: 0.44 | Q5: =F5*O5+表2[[#This Row],[合计暂定数量]]*表2[[#This Row],[税率（13%）]] -> 380.87 | R5: =IF(K5>N5,N5,0) -> 0.00 | S5: 9.28
A6: 4 | B6: 方通 | C6: 五金材料 | D6: 任意品牌 | E6: 碳钢材质，国标尺寸 | F6: 100 | G6: 公斤 | H6: 12 | I6: 9.60 | J6: 8.40 | K6: 3.65 | L6: 0.48 | M6: =F6*K6+表2[[#This Row],[合计暂定数量]]*表2[[#This Row],[税率（13%）]] -> 412.91 | N6: 13.55 | O6: 3.65 | P6: 0.48 | Q6: =F6*O6+表2[[#This Row],[合计暂定数量]]*表2[[#This Row],[税率（13%）]] -> 412.91 | R6: 0.00 | S6: 9.90
A7: 5 | B7: 钢板 | C7: 五金材料 | D7: 任意品牌 | E7: 碳钢材质，国标尺寸 | F7: 100 | G7: 公斤 | H7: 12 | I7: 9.60 | J7: 8.40 | K7: 3.45 | L7: 0.45 | M7: =F7*K7+表2[[#This Row],[合计暂定数量]]*表2[[#This Row],[税率（13%）]] -> 389.44 | N7: 13.55 | O7: 3.45 | P7: 0.45 | Q7: =F7*O7+表2[[#This Row],[合计暂定数量]]*表2[[#This Row],[税率（13%）]] -> 389.44 | R7: 0.00 | S7: 10.10
A8: 6 | B8: 304不锈钢方通 | C8: 五金材料 | D8: 任意品牌 | E8: 国标尺寸 | F8: 100 | G8: 公斤 | H8: 40 | I8: 32.00 | J8: 28.00 | K8: 33.33 | L8: 4.33 | M8: =F8*K8+表2[[#This Row],[合计暂定数量]]*表2[[#This Row],[税率（13%）]] -> 3766.67 | N8: 46.48 | O8: 33.33 | P8: 4.33 | Q8: =F8*O8+表2[[#This Row],[合计暂定数量]]*表2[[#This Row],[税率（13%）]] -> 3766.67 | R8: 0.00 | S8: 13.15
A9: 7 | B9: 304不锈钢格网 | C9: 五金材料 | D9: 任意品牌 | E9: 国标尺寸 | F9: 100 | G9: 公斤 | H9: 40 | I9: 32.00 | J9: 28.00 | K9: 33.33 | L9: 4.33 | M9: =F9*K9+表2[[#This Row],[合计暂定数量]]*表2[[#This Row],[税率（13%）]] -> 3766.67 | N9: 57.42 | O9: 33.33 | P9: 4.33 | Q9: =F9*O9+表2[[#This Row],[合计暂定数量]]*表2[[#This Row],[税率（13%）]] -> 3766.67 | R9: 0.00 | S9: 24.09
A10: 8 | B10: 304不锈钢链条 | C10: 五金材料 | D10: 任意品牌 | E10: 国标尺寸 | F10: 100 | G10: 公斤 | H10: 40 | I10: 32.00 | J10: 28.00 | K10: 33.33 | L10: 4.33 | M10: =F10*K10+表2[[#This Row],[合计暂定数量]]*表2[[#This Row],[税率（13%）]] -> 3766.67 | N10: 49.22 | O10: 33.33 | P10: 4.33 | Q10: =F10*O10+表2[[#This Row],[合计暂定数量]]*表2[[#This Row],[税率（13%）]] -> 3766.67 | R10: 0.00 | S10: 15.89
A11: 9 | B11: 304不锈钢薄板 | C11: 五金材料 | D11: 任意品牌 | E11: 1220×2440mm,0.8mm厚 | F11: 5 | G11: 张 | H11: 400 | I11: 320.00 | J11: 280.00 | K11: 333.33 | L11: 43.33 | M11: =F11*K11+表2[[#This Row],[合计暂定数量]]*表2[[#This Row],[税率（13%）]] -> 1883.33 | N11: 512.27 | O11: 333.33 | P11: 43.33 | Q11: =F11*O11+表2[[#This Row],[合计暂定数量]]*表2[[#This Row],[税率（13%）]] -> 1883.33 | R11: 0.00 | S11: 178.94
A12: 10 | B12: 304不锈钢薄板 | C12: 五金材料 | D12: 任意品牌 | E12: 1220×2440mm,1.0mm厚 | F12: 5 | G12: 张 | H12: 600 | I12: 480.00 | J12: 420.00 | K12: 500.00 | L12: 65.00 | M12: =F12*K12+表2[[#This Row],[合计暂定数量]]*表2[[#This Row],[税率（13%）]] -> 2825.00 | N12: 632.58 | O12: 500.00 | P12: 65.00 | Q12: =F12*O12+表2[[#This Row],[合计暂定数量]]*表2[[#This Row],[税率（13%）]] -> 2825.00 | R12: 0.00 | S12: 132.58
A13: 11 | B13: 304不锈钢薄板 | C13: 五金材料 | D13: 任意品牌 | E13: 1220×2440mm,1.2mm厚 | F13: 5 | G13: 张 | H13: 700 | I13: 560.00 | J13: 490.00 | K13: 583.33 | L13: 75.83 | M13: =F13*K13+表2[[#This Row],[合计暂定数量]]*表2[[#This Row],[税率（13%）]] -> 3295.83 | N13: 777.52 | O13: 583.33 | P13: 75.83 | Q13: =F13*O13+表2[[#This Row],[合计暂定数量]]*表2[[#This Row],[税率（13%）]] -> 3295.83 | R13: 0.00 | S13: 194.19
A14: 12 | B14: 镀锌方通 | C14: 五金材料 | D14: 任意品牌 | E14: 碳钢镀锌，国标尺寸 | F14: 100 | G14: 公斤 | H14: 12 | I14: 9.60 | J14: 8.40 | K14: 4.55 | L14: 0.59 | M14: =F14*K14+表2[[#This Row],[合计暂定数量]]*表2[[#This Row],[税率（13%）]] -> 513.66 | N14: 16.41 | O14: 4.55 | P14: 0.59 | Q14: =F14*O14+表2[[#This Row],[合计暂定数量]]*表2[[#This Row],[税率（13%）]] -> 513.66 | R14: 0.00 | S14: 11.86
A15: =ROW()-2 -> 13 | B15: 镀锌钢管 | C15: 五金材料 | D15: 任意品牌 | E15: 碳钢镀锌，国标尺寸 | F15: 100 | G15: 公斤 | H15: 12 | I15: 9.60 | J15: 8.40 | K15: 4.55 | L15: 0.59 | M15: =F15*K15+表2[[#This Row],[合计暂定数量]]*表2[[#This Row],[税率（13%）]] -> 513.66 | N15: 16.41 | O15: 4.55 | P15: 0.59 | Q15: =F15*O15+表2[[#This Row],[合计暂定数量]]*表2[[#This Row],[税率（13%）]] -> 513.66 | R15: 0.00 | S15: 11.86
A16: 14 | B16: 镀锌格栅板 | C16: 五金材料 | D16: 任意品牌 | E16: 碳钢镀锌，国标尺寸 | F16: 100 | G16: 公斤 | H16: 30 | I16: 24.00 | J16: 31.80 | K16: 28.60 | L16: 3.72 | M16: =F16*K16+表2[[#This Row],[合计暂定数量]]*表2[[#This Row],[税率（13%）]] -> 3231.80 | O16: =K16 -> 28.60 | P16: 3.72 | Q16: =F16*O16+表2[[#This Row],[合计暂定数量]]*表2[[#This Row],[税率（13%）]] -> 3231.80 | S16: (28.60)
A17: 15 | B17: 镀锌链条 | C17: 五金材料 | D17: 任意品牌 | E17: 碳钢镀锌，国标尺寸 | F17: 50 | G17: 公斤 | H17: 25 | I17: 20.00 | J17: 26.50 | K17: 23.83 | L17: 3.10 | M17: =F17*K17+表2[[#This Row],[合计暂定数量]]*表2[[#This Row],[税率（13%）]] -> 1346.58 | N17: 20.05 | O17: 20.05 | P17: 2.61 | Q17: =F17*O17+表2[[#This Row],[合计暂定数量]]*表2[[#This Row],[税率（13%）]] -> 1157.42 | R17: 20.05 | S17: (3.78)
A18: 16 | B18: 镀锌板 | C18: 五金材料 | D18: 任意品牌 | E18: 1220×2440mm,1.0mm厚 | F18: 5 | G18: 张 | H18: 300 | I18: 240.00 | J18: 318.00 | K18: 94.34 | L18: 12.26 | M18: =F18*K18+表2[[#This Row],[合计暂定数量]]*表2[[#This Row],[税率（13%）]] -> 533.02 | N18: 296.24 | O18: 94.34 | P18: 12.26 | Q18: =F18*O18+表2[[#This Row],[合计暂定数量]]*表2[[#This Row],[税率（13%）]] -> 533.02 | R18: 0.00 | S18: 201.90
A19: 17 | B19: 镀锌板 | C19: 五金材料 | D19: 任意品牌 | E19: 1220×2440mm,2.0mm厚 | F19: 5 | G19: 张 | H19: 500 | I19: 400.00 | J19: 530.00 | K19: 186.88 | L19: 24.29 | M19: =F19*K19+表2[[#This Row],[合计暂定数量]]*表2[[#This Row],[税率（13%）]] -> 1055.87 | N19: 526.85 | O19: 186.88 | P19: 24.29 | Q19: =F19*O19+表2[[#This Row],[合计暂定数量]]*表2[[#This Row],[税率（13%）]] -> 1055.87 | R19: 0.00 | S19: 339.97
A20: 18 | B20: 304不锈钢管件 | C20: 五金材料 | D20: 任意品牌 | E20: 国标尺寸 | F20: 100 | G20: 公斤 | H20: 100 | I20: 80.00 | J20: 106.00 | K20: 95.33 | L20: 12.39 | M20: =F20*K20+表2[[#This Row],[合计暂定数量]]*表2[[#This Row],[税率（13%）]] -> 10772.67 | N20: 103.91 | O20: 95.33 | P20: 12.39 | Q20: =F20*O20+表2[[#This Row],[合计暂定数量]]*表2[[#This Row],[税率（13%）]] -> 10772.67 | R20: 0.00 | S20: 8.58
A21: 19 | B21: 碳钢焊接法兰 | C21: 五金材料 | D21: 任意品牌 | E21: DN25，PN16 | F21: 5 | G21: 片 | H21: 22 | I21: 17.60 | J21: 23.32 | K21: 20.97 | L21: 2.73 | M21: =F21*K21+表2[[#This Row],[合计暂定数量]]*表2[[#This Row],[税率（13%）]] -> 118.50 | N21: 18.04 | O21: 18.04 | P21: 2.35 | Q21: =F21*O21+表2[[#This Row],[合计暂定数量]]*表2[[#This Row],[税率（13%）]] -> 103.83 | R21: 18.04 | S21: (2.93)
A22: 20 | B22: 碳钢焊接法兰 | C22: 五金材料 | D22: 任意品牌 | E22: DN32，PN16 | F22: 5 | G22: 片 | H22: 25 | I22: 20.00 | J22: 26.50 | K22: 23.83 | L22: 3.10 | M22: =F22*K22+表2[[#This Row],[合计暂定数量]]*表2[[#This Row],[税率（13%）]] -> 134.66 | N22: 21.37 | O22: 21.37 | P22: 2.78 | Q22: =F22*O22+表2[[#This Row],[合计暂定数量]]*表2[[#This Row],[税率（13%）]] -> 122.34 | R22: 21.37 | S22: (2.46)
A23: 21 | B23: 碳钢焊接法兰 | C23: 五金材料 | D23: 任意品牌 | E23: DN40，PN16 | F23: 5 | G23: 片 | H23: 28 | I23: 22.40 | J23: 29.68 | K23: 26.69 | L23: 3.47 | M23: =F23*K23+表2[[#This Row],[合计暂定数量]]*表2[[#This Row],[税率（13%）]] -> 150.82 | N23: 25.68 | O23: 25.68 | P23: 3.34 | Q23: =F23*O23+表2[[#This Row],[合计暂定数量]]*表2[[#This Row],[税率（13%）]] -> 145.75 | R23: 25.68 | S23: (1.01)
A24: 22 | B24: 碳钢焊接法兰 | C24: 五金材料 | D24: 任意品牌 | E24: DN50，PN16 | F24: 5 | G24: 片 | H24: 31 | I24: 24.80 | J24: 32.86 | K24: 29.55 | L24: 3.84 | M24: =F24*K24+表2[[#This Row],[合计暂定数量]]*表2[[#This Row],[税率（13%）]] -> 166.98 | N24: 32.81 | O24: 29.55 | P24: 3.84 | Q24: =F24*O24+表2[[#This Row],[合计暂定数量]]*表2[[#This Row],[税率（13%）]] -> 166.98 | R24: 0.00 | S24: 3.26
A25: =ROW()-2 -> 23 | B25: 碳钢焊接法兰 | C25: 五金材料 | D25: 任意品牌 | E25: DN65，PN16 | F25: 5 | G25: 片 | H25: 34 | I25: 27.20 | J25: 36.04 | K25: 32.41 | L25: 4.21 | M25: =F25*K25+表2[[#This Row],[合计暂定数量]]*表2[[#This Row],[税率（13%）]] -> 183.14 | N25: 44.25 | O25: 32.41 | P25: 4.21 | Q25: =F25*O25+表2[[#This Row],[合计暂定数量]]*表2[[#This Row],[税率（13%）]] -> 183.14 | R25: 0.00 | S25: 11.84
A26: 24 | B26: 碳钢焊接法兰 | C26: 五金材料 | D26: 任意品牌 | E26: DN100，PN16 | F26: 5 | G26: 片 | H26: 47 | I26: 48.00 | J26: 49.82 | K26: 48.27 | L26: 6.28 | M26: =F26*K26+表2[[#This Row],[合计暂定数量]]*表2[[#This Row],[税率（13%）]] -> 272.74 | N26: 63.62 | O26: 48.27 | P26: 6.28 | Q26: =F26*O26+表2[[#This Row],[合计暂定数量]]*表2[[#This Row],[税率（13%）]] -> 272.74 | R26: 0.00 | S26: 15.35
A27: 25 | B27: 304不锈钢焊接法兰 | C27: 五金材料 | D27: 任意品牌 | E27: DN25，PN16 | F27: 5 | G27: 片 | H27: 44 | I27: 46.20 | J27: 46.64 | K27: 45.61 | L27: 5.93 | M27: =F27*K27+表2[[#This Row],[合计暂定数量]]*表2[[#This Row],[税率（13%）]] -> 257.72 | N27: 42.27 | O27: 42.27 | P27: 5.50 | Q27: =F27*O27+表2[[#This Row],[合计暂定数量]]*表2[[#This Row],[税率（13%）]] -> 241.00 | R27: 42.27 | S27: (3.34)
A28: 26 | B28: 304不锈钢焊接法兰 | C28: 五金材料 | D28: 任意品牌 | E28: DN32，PN16 | F28: 5 | G28: 片 | H28: 64 | I28: 67.20 | J28: 67.84 | K28: 66.35 | L28: 8.63 | M28: =F28*K28+表2[[#This Row],[合计暂定数量]]*表2[[#This Row],[税率（13%）]] -> 374.86 | N28: 57.95 | O28: 57.95 | P28: 7.53 | Q28: =F28*O28+表2[[#This Row],[合计暂定数量]]*表2[[#This Row],[税率（13%）]] -> 332.88 | R28: 57.95 | S28: (8.40)
A29: 27 | B29: 304不锈钢焊接法兰 | C29: 五金材料 | D29: 任意品牌 | E29: DN40，PN16 | F29: 3 | G29: 片 | H29: 70 | I29: 73.50 | J29: 74.20 | K29: 72.57 | L29: 9.43 | M29: =F29*K29+表2[[#This Row],[合计暂定数量]]*表2[[#This Row],[税率（13%）]] -> 246.00 | N29: 67.74 | O29: 67.74 | P29: 8.81 | Q29: =F29*O29+表2[[#This Row],[合计暂定数量]]*表2[[#This Row],[税率（13%）]] -> 231.52 | R29: 67.74 | S29: (4.83)
A30: 28 | B30: 304不锈钢焊接法兰 | C30: 五金材料 | D30: 任意品牌 | E30: DN50，PN16 | F30: 3 | G30: 片 | H30: 80 | I30: 84.00 | J30: 84.80 | K30: 82.93 | L30: 10.78 | M30: =F30*K30+表2[[#This Row],[合计暂定数量]]*表2[[#This Row],[税率（13%）]] -> 281.14 | N30: 84.07 | O30: 82.93 | P30: 10.78 | Q30: =F30*O30+表2[[#This Row],[合计暂定数量]]*表2[[#This Row],[税率（13%）]] -> 281.14 | R30: 0.00 | S30: 1.14
A31: 29 | B31: 304不锈钢焊接法兰 | C31: 五金材料 | D31: 任意品牌 | E31: DN65，PN16 | F31: 3 | G31: 片 | H31: 115 | I31: 120.75 | J31: 121.90 | K31: 119.22 | L31: 15.50 | M31: =F31*K31+表2[[#This Row],[合计暂定数量]]*表2[[#This Row],[税率（13%）]] -> 404.14 | N31: 110.60 | O31: 110.60 | P31: 14.38 | Q31: =F31*O31+表2[[#This Row],[合计暂定数量]]*表2[[#This Row],[税率（13%）]] -> 378.29 | R31: 110.60 | S31: (8.62)
A32: 30 | B32: 304不锈钢法兰盲板 | C32: 五金材料 | D32: 任意品牌 | E32: DN50，PN16 | F32: 4 | G32: 片 | H32: 135 | I32: 141.75 | J32: 143.10 | K32: 139.95 | L32: 18.19 | M32: =F32*K32+表2[[#This Row],[合计暂定数量]]*表2[[#This Row],[税率（13%）]] -> 632.57 | N32: 120.63 | O32: 120.63 | P32: 15.68 | Q32: =F32*O32+表2[[#This Row],[合计暂定数量]]*表2[[#This Row],[税率（13%）]] -> 555.29 | R32: 120.63 | S32: (19.32)
A33: 31 | B33: 304不锈钢法兰盲板 | C33: 五金材料 | D33: 任意品牌 | E33: DN65，PN16 | F33: 4 | G33: 片 | H33: 185 | I33: 194.25 | J33: 196.10 | K33: 191.78 | L33: 24.93 | M33: =F33*K33+表2[[#This Row],[合计暂定数量]]*表2[[#This Row],[税率（13%）]] -> 866.86 | N33: 154.89 | O33: 154.89 | P33: 20.14 | Q33: =F33*O33+表2[[#This Row],[合计暂定数量]]*表2[[#This Row],[税率（13%）]] -> 719.29 | R33: 154.89 | S33: (36.89)
A34: 32 | B34: 304不锈钢法兰盲板 | C34: 五金材料 | D34: 任意品牌 | E34: DN100，PN16 | F34: 5 | G34: 片 | H34: 275 | I34: 288.75 | J34: 291.50 | K34: 285.08 | L34: 37.06 | M34: =F34*K34+表2[[#This Row],[合计暂定数量]]*表2[[#This Row],[税率（13%）]] -> 1610.72 | N34: 235.53 | O34: 235.53 | P34: 30.62 | Q34: =F34*O34+表2[[#This Row],[合计暂定数量]]*表2[[#This Row],[税率（13%）]] -> 1362.95 | R34: 235.53 | S34: (49.55)
A35: =ROW()-2 -> 33 | B35: 304不锈钢波纹伸缩接头 | C35: 五金材料 | D35: 任意品牌 | E35: DN100，PN10，耐酸碱、高温 | F35: 3 | G35: 只 | H35: 410 | I35: 430.50 | J35: 434.60 | K35: 425.03 | L35: 55.25 | M35: =F35*K35+表2[[#This Row],[合计暂定数量]]*表2[[#This Row],[税率（13%）]] -> 1440.86 | N35: 477.05 | O35: 425.03 | P35: 55.25 | Q35: =F35*O35+表2[[#This Row],[合计暂定数量]]*表2[[#This Row],[税率（13%）]] -> 1440.86 | R35: 0.00 | S35: 52.02
A36: 34 | B36: 304不锈钢波纹伸缩接头 | C36: 五金材料 | D36: 任意品牌 | E36: DN125，PN10，耐酸碱、高温 | F36: 3 | G36: 只 | H36: 550 | I36: 577.50 | J36: 583.00 | K36: 570.17 | L36: 74.12 | M36: =F36*K36+表2[[#This Row],[合计暂定数量]]*表2[[#This Row],[税率（13%）]] -> 1932.87 | N36: 603.54 | O36: =IF(K36>N36,N36,K36) -> 570.17 | P36: 74.12 | Q36: =F36*O36+表2[[#This Row],[合计暂定数量]]*表2[[#This Row],[税率（13%）]] -> 1932.87 | R36: 0.00 | S36: 33.37
A37: 35 | B37: 304不锈钢波纹伸缩接头 | C37: 五金材料 | D37: 任意品牌 | E37: DN150，PN10，耐酸碱、高温 | F37: 3 | G37: 只 | H37: 700 | I37: 735.00 | J37: 742.00 | K37: 725.67 | L37: 94.34 | M37: =F37*K37+表2[[#This Row],[合计暂定数量]]*表2[[#This Row],[税率（13%）]] -> 2460.01 | N37: 751.74 | O37: 725.67 | P37: 94.34 | Q37: =F37*O37+表2[[#This Row],[合计暂定数量]]*表2[[#This Row],[税率（13%）]] -> 2460.01 | R37: 0.00 | S37: 26.07
A38: 36 | B38: 304不锈钢波纹伸缩接头 | C38: 五金材料 | D38: 任意品牌 | E38: DN200，PN10，耐酸碱、高温 | F38: 3 | G38: 只 | H38: 900 | I38: 945.00 | J38: 954.00 | K38: 933.00 | L38: 121.29 | M38: =F38*K38+表2[[#This Row],[合计暂定数量]]*表2[[#This Row],[税率（13%）]] -> 3162.87 | N38: 947.77 | O38: 933.00 | P38: 121.29 | Q38: =F38*O38+表2[[#This Row],[合计暂定数量]]*表2[[#This Row],[税率（13%）]] -> 3162.87 | R38: 0.00 | S38: 14.77
A39: 37 | B39: 304不锈钢波纹伸缩接头 | C39: 五金材料 | D39: 任意品牌 | E39: DN250，PN10，耐酸碱、高温 | F39: 3 | G39: 只 | H39: 1,600 | I39: 1680.00 | J39: 1696.00 | K39: 1658.67 | L39: 215.63 | M39: =F39*K39+表2[[#This Row],[合计暂定数量]]*表2[[#This Row],[税率（13%）]] -> 5622.88 | N39: 1609.16 | O39: 1609.16 | P39: 209.19 | Q39: =F39*O39+表2[[#This Row],[合计暂定数量]]*表2[[#This Row],[税率（13%）]] -> 5474.36 | R39: 1609.16 | S39: (49.51)
A40: 38 | B40: 304不锈钢法兰橡胶软接头 | C40: 五金材料 | D40: 任意品牌 | E40: DN150，PN25，耐酸碱、高温 | F40: 10 | G40: 只 | H40: 1,500 | I40: 1575.00 | J40: 1590.00 | K40: 1555.00 | L40: 202.15 | M40: =F40*K40+表2[[#This Row],[合计暂定数量]]*表2[[#This Row],[税率（13%）]] -> 17571.50 | O40: =K40 -> 1555.00 | P40: 202.15 | Q40: =F40*O40+表2[[#This Row],[合计暂定数量]]*表2[[#This Row],[税率（13%）]] -> 17571.50 | S40: (1555.00)
A41: 39 | B41: 304不锈钢法兰橡胶软接头 | C41: 五金材料 | D41: 任意品牌 | E41: DN125，PN25，耐酸碱、高温 | F41: 10 | G41: 只 | H41: 1,300 | I41: 1365.00 | J41: 1378.00 | K41: 1347.67 | L41: 175.20 | M41: =F41*K41+表2[[#This Row],[合计暂定数量]]*表2[[#This Row],[税率（13%）]] -> 15228.63 | O41: 1347.67 | P41: 175.20 | Q41: =F41*O41+表2[[#This Row],[合计暂定数量]]*表2[[#This Row],[税率（13%）]] -> 15228.63 | S41: (1347.67)
A42: 40 | B42: 304不锈钢法兰橡胶软接头 | C42: 五金材料 | D42: 任意品牌 | E42: DN100，PN25，耐酸碱、高温 | F42: 10 | G42: 只 | H42: 1,000 | I42: 1050.00 | J42: 1060.00 | K42: 1036.67 | L42: 134.77 | M42: =F42*K42+表2[[#This Row],[合计暂定数量]]*表2[[#This Row],[税率（13%）]] -> 11714.33 | O42: 1036.67 | P42: 134.77 | Q42: =F42*O42+表2[[#This Row],[合计暂定数量]]*表2[[#This Row],[税率（13%）]] -> 11714.33 | S42: (1036.67)
A43: 41 | B43: 304不锈钢法兰橡胶软接头 | C43: 五金材料 | D43: 任意品牌 | E43: DN100，PN16，耐酸碱、高温 | F43: 10 | G43: 只 | H43: 500 | I43: 525.00 | J43: 530.00 | K43: 518.33 | L43: 67.38 | M43: =F43*K43+表2[[#This Row],[合计暂定数量]]*表2[[#This Row],[税率（13%）]] -> 5857.17 | N43: 450.83 | O43: 450.83 | P43: 58.61 | Q43: =F43*O43+表2[[#This Row],[合计暂定数量]]*表2[[#This Row],[税率（13%）]] -> 5182.13 | R43: 450.83 | S43: (67.50)
A44: 42 | B44: 304不锈钢法兰橡胶软接头 | C44: 五金材料 | D44: 任意品牌 | E44: DN80，PN25，耐酸碱、高温 | F44: 5 | G44: 只 | H44: 350 | I44: 367.50 | J44: 371.00 | K44: 362.83 | L44: 47.17 | M44: =F44*K44+表2[[#This Row],[合计暂定数量]]*表2[[#This Row],[税率（13%）]] -> 2050.01 | O44: 362.83 | P44: 47.17 | Q44: =F44*O44+表2[[#This Row],[合计暂定数量]]*表2[[#This Row],[税率（13%）]] -> 2050.01 | S44: (362.83)
A45: =ROW()-2 -> 43 | B45: 304不锈钢法兰橡胶软接头 | C45: 五金材料 | D45: 任意品牌 | E45: DN50，PN16，耐酸碱、高温 | F45: 5 | G45: 只 | H45: 220 | I45: 231.00 | J45: 233.20 | K45: 228.07 | L45: 29.65 | M45: =F45*K45+表2[[#This Row],[合计暂定数量]]*表2[[#This Row],[税率（13%）]] -> 1288.58 | O45: 228.07 | P45: 29.65 | Q45: =F45*O45+表2[[#This Row],[合计暂定数量]]*表2[[#This Row],[税率（13%）]] -> 1288.58 | S45: (228.07)
A46: 44 | B46: 碳钢镀锌外六角螺栓 | C46: 五金材料 | D46: 任意品牌 | E46: 国标尺寸 | F46: 25 | G46: 公斤 | H46: 80 | I46: 84.00 | J46: 84.80 | K46: 82.93 | L46: 10.78 | M46: =F46*K46+表2[[#This Row],[合计暂定数量]]*表2[[#This Row],[税率（13%）]] -> 2342.87 | N46: 79.51 | O46: 79.51 | P46: 10.34 | Q46: =F46*O46+表2[[#This Row],[合计暂定数量]]*表2[[#This Row],[税率（13%）]] -> 2257.28 | R46: 79.51 | S46: (3.42)
A47: 45 | B47: 碳钢镀锌内六角螺栓 | C47: 五金材料 | D47: 任意品牌 | E47: 国标尺寸 | F47: 10 | G47: 公斤 | H47: 70 | I47: 73.50 | J47: 74.20 | K47: 72.57 | L47: 9.43 | M47: =F47*K47+表2[[#This Row],[合计暂定数量]]*表2[[#This Row],[税率（13%）]] -> 820.00 | N47: 79.51 | O47: 72.57 | P47: 9.43 | Q47: =F47*O47+表2[[#This Row],[合计暂定数量]]*表2[[#This Row],[税率（13%）]] -> 820.00 | R47: 0.00 | S47: 6.94
A48: 46 | B48: 碳钢镀锌螺母 | C48: 五金材料 | D48: 任意品牌 | E48: 国标尺寸 | F48: 10 | G48: 公斤 | H48: 70 | I48: 73.50 | J48: 74.20 | K48: 72.57 | L48: 9.43 | M48: =F48*K48+表2[[#This Row],[合计暂定数量]]*表2[[#This Row],[税率（13%）]] -> 820.00 | N48: 88.51 | O48: 72.57 | P48: 9.43 | Q48: =F48*O48+表2[[#This Row],[合计暂定数量]]*表2[[#This Row],[税率（13%）]] -> 820.00 | R48: 0.00 | S48: 15.94
A49: 47 | B49: 碳钢镀锌弹垫 | C49: 五金材料 | D49: 任意品牌 | E49: 国标尺寸 | F49: 10 | G49: 公斤 | H49: 5 | I49: 5.25 | J49: 5.30 | K49: 5.18 | L49: 0.67 | M49: =F49*K49+表2[[#This Row],[合计暂定数量]]*表2[[#This Row],[税率（13%）]] -> 58.57 | N49: 99.55 | O49: 5.18 | P49: 0.67 | Q49: =F49*O49+表2[[#This Row],[合计暂定数量]]*表2[[#This Row],[税率（13%）]] -> 58.57 | R49: 0.00 | S49: 94.37
A50: 48 | B50: 碳钢镀锌平垫 | C50: 五金材料 | D50: 任意品牌 | E50: 国标尺寸 | F50: 10 | G50: 公斤 | H50: 70 | I50: 73.50 | J50: 74.20 | K50: 72.57 | L50: 9.43 | M50: =F50*K50+表2[[#This Row],[合计暂定数量]]*表2[[#This Row],[税率（13%）]] -> 820.00 | N50: 99.55 | O50: 72.57 | P50: 9.43 | Q50: =F50*O50+表2[[#This Row],[合计暂定数量]]*表2[[#This Row],[税率（13%）]] -> 820.00 | R50: 0.00 | S50: 26.98
A51: 49 | B51: 304不锈钢外六角螺栓 | C51: 五金材料 | D51: 任意品牌 | E51: 国标尺寸 | F51: 40 | G51: 公斤 | H51: 120 | I51: 126.00 | J51: 127.20 | K51: 124.40 | L51: 16.17 | M51: =F51*K51+表2[[#This Row],[合计暂定数量]]*表2[[#This Row],[税率（13%）]] -> 5622.88 | N51: 120.17 | O51: 120.17 | P51: 15.62 | Q51: =F51*O51+表2[[#This Row],[合计暂定数量]]*表2[[#This Row],[税率（13%）]] -> 5453.68 | R51: 120.17 | S51: (4.23)
A52: 50 | B52: 304不锈钢内六角螺栓 | C52: 五金材料 | D52: 任意品牌 | E52: 国标尺寸 | F52: 40 | G52: 公斤 | H52: 120 | I52: 126.00 | J52: 127.20 | K52: 124.40 | L52: 16.17 | M52: =F52*K52+表2[[#This Row],[合计暂定数量]]*表2[[#This Row],[税率（13%）]] -> 5622.88 | N52: 120.17 | O52: 120.17 | P52: 15.62 | Q52: =F52*O52+表2[[#This Row],[合计暂定数量]]*表2[[#This Row],[税率（13%）]] -> 5453.68 | R52: 120.17 | S52: (4.23)
A53: 51 | B53: 304不锈钢螺母 | C53: 五金材料 | D53: 任意品牌 | E53: 国标尺寸 | F53: 20 | G53: 公斤 | H53: 120 | I53: 126.00 | J53: 127.20 | K53: 124.40 | L53: 16.17 | M53: =F53*K53+表2[[#This Row],[合计暂定数量]]*表2[[#This Row],[税率（13%）]] -> 2811.44 | N53: 169.07 | O53: 124.40 | P53: 16.17 | Q53: =F53*O53+表2[[#This Row],[合计暂定数量]]*表2[[#This Row],[税率（13%）]] -> 2811.44 | R53: 0.00 | S53: 44.67
A54: 52 | B54: 304不锈钢弹垫 | C54: 五金材料 | D54: 任意品牌 | E54: 国标尺寸 | F54: 10 | G54: 公斤 | H54: 120 | I54: 126.00 | J54: 127.20 | K54: 124.40 | L54: 16.17 | M54: =F54*K54+表2[[#This Row],[合计暂定数量]]*表2[[#This Row],[税率（13%）]] -> 1405.72 | N54: 179.78 | O54: 124.40 | P54: 16.17 | Q54: =F54*O54+表2[[#This Row],[合计暂定数量]]*表2[[#This Row],[税率（13%）]] -> 1405.72 | R54: 0.00 | S54: 55.38
A55: =ROW()-2 -> 53 | B55: 304不锈钢平垫 | C55: 五金材料 | D55: 任意品牌 | E55: 国标尺寸 | F55: 10 | G55: 公斤 | H55: 120 | I55: 126.00 | J55: 127.20 | K55: 124.40 | L55: 16.17 | M55: =F55*K55+表2[[#This Row],[合计暂定数量]]*表2[[#This Row],[税率（13%）]] -> 1405.72 | N55: 179.78 | O55: 124.40 | P55: 16.17 | Q55: =F55*O55+表2[[#This Row],[合计暂定数量]]*表2[[#This Row],[税率（13%）]] -> 1405.72 | R55: 0.00 | S55: 55.38
A56: 54 | B56: 碳钢镀锌螺钉 | C56: 五金材料 | D56: 任意品牌 | E56: 国标尺寸 | F56: 10 | G56: 公斤 | H56: 80 | I56: 84.00 | J56: 84.80 | K56: 82.93 | L56: 10.78 | M56: =F56*K56+表2[[#This Row],[合计暂定数量]]*表2[[#This Row],[税率（13%）]] -> 937.15 | N56: 83.16 | O56: 82.93 | P56: 10.78 | Q56: =F56*O56+表2[[#This Row],[合计暂定数量]]*表2[[#This Row],[税率（13%）]] -> 937.15 | R56: 0.00 | S56: 0.23
A57: 55 | B57: 碳钢镀锌膨胀螺栓 | C57: 五金材料 | D57: 任意品牌 | E57: 国标尺寸 | F57: 20 | G57: 公斤 | H57: 80 | I57: 84.00 | J57: 84.80 | K57: 82.93 | L57: 10.78 | M57: =F57*K57+表2[[#This Row],[合计暂定数量]]*表2[[#This Row],[税率（13%）]] -> 1874.29 | N57: 45.18 | O57: 45.18 | P57: 5.87 | Q57: =F57*O57+表2[[#This Row],[合计暂定数量]]*表2[[#This Row],[税率（13%）]] -> 1119.23 | R57: 45.18 | S57: (37.75)
A58: 56 | B58: 碳钢镀锌花篮螺栓 | C58: 五金材料 | D58: 任意品牌 | E58: 国标尺寸 | F58: 10 | G58: 公斤 | H58: 80 | I58: 84.00 | J58: 84.80 | K58: 82.93 | L58: 10.78 | M58: =F58*K58+表2[[#This Row],[合计暂定数量]]*表2[[#This Row],[税率（13%）]] -> 937.15 | N58: 84.93 | O58: 82.93 | P58: 10.78 | Q58: =F58*O58+表2[[#This Row],[合计暂定数量]]*表2[[#This Row],[税率（13%）]] -> 937.15 | R58: 0.00 | S58: 2.00
A59: 57 | B59: 410不锈钢自钻螺钉 | C59: 五金材料 | D59: 任意品牌 | E59: 国标尺寸 | F59: 20 | G59: 公斤 | H59: 160 | I59: 168.00 | J59: 169.60 | K59: 165.87 | L59: 21.56 | M59: =F59*K59+表2[[#This Row],[合计暂定数量]]*表2[[#This Row],[税率（13%）]] -> 3748.59 | N59: 180.70 | O59: 165.87 | P59: 21.56 | Q59: =F59*O59+表2[[#This Row],[合计暂定数量]]*表2[[#This Row],[税率（13%）]] -> 3748.59 | R59: 0.00 | S59: 14.83
A60: 58 | B60: 304不锈钢U型卸扣 | C60: 五金材料 | D60: 任意品牌 | E60: 国标尺寸 | F60: 15 | G60: 公斤 | H60: 120 | I60: 126.00 | J60: 127.20 | K60: 124.40 | L60: 16.17 | M60: =F60*K60+表2[[#This Row],[合计暂定数量]]*表2[[#This Row],[税率（13%）]] -> 2108.58 | N60: 212.34 | O60: 124.40 | P60: 16.17 | Q60: =F60*O60+表2[[#This Row],[合计暂定数量]]*表2[[#This Row],[税率（13%）]] -> 2108.58 | R60: 0.00 | S60: 87.94
A61: 59 | B61: 304不锈钢钢丝绳锁扣 | C61: 五金材料 | D61: 任意品牌 | E61: 国标尺寸 | F61: 10 | G61: 公斤 | H61: 120 | I61: 126.00 | J61: 127.20 | K61: 124.40 | L61: 16.17 | M61: =F61*K61+表2[[#This Row],[合计暂定数量]]*表2[[#This Row],[税率（13%）]] -> 1405.72 | N61: 196.09 | O61: 124.40 | P61: 16.17 | Q61: =F61*O61+表2[[#This Row],[合计暂定数量]]*表2[[#This Row],[税率（13%）]] -> 1405.72 | R61: 0.00 | S61: 71.69
A62: 60 | B62: 拉簧 | C62: 五金材料 | D62: 任意品牌 | E62: 1.2*12*60，碳钢 | F62: 30 | G62: 条 | H62: 2 | I62: 2.10 | J62: 2.12 | K62: 2.07 | L62: 0.27 | M62: =F62*K62+表2[[#This Row],[合计暂定数量]]*表2[[#This Row],[税率（13%）]] -> 70.29 | O62: =K62 -> 2.07 | P62: 0.27 | Q62: =F62*O62+表2[[#This Row],[合计暂定数量]]*表2[[#This Row],[税率（13%）]] -> 70.29 | S62: (2.07)
A63: 61 | B63: 铁丝 | C63: 五金材料 | D63: 任意品牌 | E63: 国标尺寸 | F63: 10 | G63: 公斤 | H63: 20 | I63: 21.00 | J63: 21.20 | K63: 20.73 | L63: 2.70 | M63: =F63*K63+表2[[#This Row],[合计暂定数量]]*表2[[#This Row],[税率（13%）]] -> 234.29 | N63: 18.99 | O63: 18.99 | P63: 2.47 | Q63: =F63*O63+表2[[#This Row],[合计暂定数量]]*表2[[#This Row],[税率（13%）]] -> 216.85 | R63: 18.99 | S63: (1.74)
A64: 62 | B64: 镀锌铁丝 | C64: 五金材料 | D64: 任意品牌 | E64: 国标尺寸 | F64: 10 | G64: 公斤 | H64: 20 | I64: 21.00 | J64: 21.20 | K64: 20.73 | L64: 2.70 | M64: =F64*K64+表2[[#This Row],[合计暂定数量]]*表2[[#This Row],[税率（13%）]] -> 234.29 | N64: 21.68 | O64: 20.73 | P64: 2.70 | Q64: =F64*O64+表2[[#This Row],[合计暂定数量]]*表2[[#This Row],[税率（13%）]] -> 234.29 | R64: 0.00 | S64: 0.95
A65: =ROW()-2 -> 63 | B65: 不锈钢氩弧焊丝 | C65: 五金材料 | D65: 任意品牌 | E65: 国标尺寸 | F65: 3 | G65: 公斤 | H65: 50 | I65: 52.50 | J65: 53.00 | K65: 51.83 | L65: 6.74 | M65: =F65*K65+表2[[#This Row],[合计暂定数量]]*表2[[#This Row],[税率（13%）]] -> 175.72 | N65: 50.60 | O65: 50.60 | P65: 6.58 | Q65: =F65*O65+表2[[#This Row],[合计暂定数量]]*表2[[#This Row],[税率（13%）]] -> 172.02 | R65: 50.60 | S65: (1.23)
A66: 64 | B66: 304不锈钢喉箍 | C66: 五金材料 | D66: 任意品牌 | E66: 14-51mm | F66: 20 | G66: 个 | H66: 2 | I66: 1.68 | J66: 1.70 | K66: 1.66 | L66: 0.22 | M66: =F66*K66+表2[[#This Row],[合计暂定数量]]*表2[[#This Row],[税率（13%）]] -> 37.49 | N66: 1.81 | O66: 1.66 | P66: 0.22 | Q66: =F66*O66+表2[[#This Row],[合计暂定数量]]*表2[[#This Row],[税率（13%）]] -> 37.49 | R66: 0.00 | S66: 0.15
A67: 65 | B67: 304不锈钢喉箍 | C67: 五金材料 | D67: 任意品牌 | E67: 46-95mm | F67: 20 | G67: 个 | H67: 2 | I67: 2.00 | J67: 2.01 | K67: 1.97 | L67: 0.26 | M67: =F67*K67+表2[[#This Row],[合计暂定数量]]*表2[[#This Row],[税率（13%）]] -> 44.51 | N67: 1.81 | O67: 1.81 | P67: 0.24 | Q67: =F67*O67+表2[[#This Row],[合计暂定数量]]*表2[[#This Row],[税率（13%）]] -> 41.32 | R67: 1.81 | S67: (0.16)
A68: 66 | B68: 304不锈钢喉箍 | C68: 五金材料 | D68: 任意品牌 | E68: 84-140mm | F68: 20 | G68: 个 | H68: 2 | I68: 2.42 | J68: 2.44 | K68: 2.38 | L68: =K68*0.13 -> 0.31 | M68: =F68*K68+表2[[#This Row],[合计暂定数量]]*表2[[#This Row],[税率（13%）]] -> 53.89 | N68: 1.81 | O68: =IF(K68>N68,N68,K68) -> 1.81 | P68: =O68*0.13 -> 0.24 | Q68: =F68*O68+表2[[#This Row],[合计暂定数量]]*表2[[#This Row],[税率（13%）]] -> 42.40 | R68: =IF(K68>N68,N68,0) -> 1.81 | S68: =N68-K68 -> (0.57)
A69: 67 | B69: 304不锈钢喉箍 | C69: 五金材料 | D69: 任意品牌 | E69: 130-178mm | F69: 20 | G69: 个 | H69: 3 | I69: 2.84 | J69: 2.86 | K69: 2.80 | L69: 0.36 | M69: =F69*K69+表2[[#This Row],[合计暂定数量]]*表2[[#This Row],[税率（13%）]] -> 63.26 | N69: 2.71 | O69: 2.71 | P69: 0.35 | Q69: =F69*O69+表2[[#This Row],[合计暂定数量]]*表2[[#This Row],[税率（13%）]] -> 61.48 | R69: 2.71 | S69: (0.09)
A70: 68 | B70: 304不锈钢喉箍 | C70: 五金材料 | D70: 任意品牌 | E70: 160-245mm | F70: 20 | G70: 个 | H70: 4 | I70: 3.99 | J70: 4.03 | K70: 3.94 | L70: 0.51 | M70: =F70*K70+表2[[#This Row],[合计暂定数量]]*表2[[#This Row],[税率（13%）]] -> 89.03 | N70: 3.61 | O70: 3.61 | P70: 0.47 | Q70: =F70*O70+表2[[#This Row],[合计暂定数量]]*表2[[#This Row],[税率（13%）]] -> 82.44 | R70: 3.61 | S70: (0.33)
A71: 69 | B71: 铁管卡箍 | C71: 五金材料 | D71: 任意品牌 | E71: DN50 | F71: 10 | G71: 个 | H71: 10 | I71: 10.50 | J71: 10.60 | K71: 10.37 | L71: 1.35 | M71: =F71*K71+表2[[#This Row],[合计暂定数量]]*表2[[#This Row],[税率（13%）]] -> 117.14 | O71: =K71 -> 10.37 | P71: 1.35 | Q71: =F71*O71+表2[[#This Row],[合计暂定数量]]*表2[[#This Row],[税率（13%）]] -> 117.14 | S71: (10.37)
A72: 70 | B72: 铆钉 | C72: 五金材料 | D72: 任意品牌 | E72: M2.4×10，1000枚/盒 | F72: 2 | G72: 盒 | H72: 100 | I72: 105.00 | J72: 106.00 | K72: 103.67 | L72: 13.48 | M72: =F72*K72+表2[[#This Row],[合计暂定数量]]*表2[[#This Row],[税率（13%）]] -> 234.29 | N72: 97.58 | O72: 97.58 | P72: 12.69 | Q72: =F72*O72+表2[[#This Row],[合计暂定数量]]*表2[[#This Row],[税率（13%）]] -> 222.11 | R72: 97.58 | S72: (6.09)
A73: 71 | B73: 铆钉 | C73: 五金材料 | D73: 任意品牌 | E73: M3.2×20，1000枚/盒 | F73: 2 | G73: 盒 | H73: 110 | I73: 115.50 | J73: 116.60 | K73: 114.03 | L73: 14.82 | M73: =F73*K73+表2[[#This Row],[合计暂定数量]]*表2[[#This Row],[税率（13%）]] -> 257.72 | N73: 106.99 | O73: 106.99 | P73: 13.91 | Q73: =F73*O73+表2[[#This Row],[合计暂定数量]]*表2[[#This Row],[税率（13%）]] -> 243.63 | R73: 106.99 | S73: (7.04)
A74: 72 | B74: 铆钉 | C74: 五金材料 | D74: 任意品牌 | E74: M4×25，500枚/盒 | F74: 2 | G74: 盒 | H74: 120 | I74: 126.00 | J74: 127.20 | K74: 124.40 | L74: 16.17 | M74: =F74*K74+表2[[#This Row],[合计暂定数量]]*表2[[#This Row],[税率（13%）]] -> 281.14 | N74: 99.39 | O74: 99.39 | P74: 12.92 | Q74: =F74*O74+表2[[#This Row],[合计暂定数量]]*表2[[#This Row],[税率（13%）]] -> 231.12 | R74: 99.39 | S74: (25.01)
A75: =ROW()-2 -> 73 | B75: 绝缘橡胶垫 | C75: 五金材料 | D75: 任意品牌 | E75: 10KV，5mm厚，1米宽，绿色，防滑，5米/卷 | F75: 20 | G75: 卷 | H75: 300 | I75: 315.00 | J75: 318.00 | K75: 311.00 | L75: 40.43 | M75: =F75*K75+表2[[#This Row],[合计暂定数量]]*表2[[#This Row],[税率（13%）]] -> 7028.60 | N75: 260.21 | O75: 260.21 | P75: 33.83 | Q75: =F75*O75+表2[[#This Row],[合计暂定数量]]*表2[[#This Row],[税率（13%）]] -> 6012.80 | R75: 260.21 | S75: (50.79)
A76: 74 | B76: 石墨盘根 | C76: 五金材料 | D76: 任意品牌 | E76: 任意尺寸 | F76: 15 | G76: 公斤 | H76: 100 | I76: 105.00 | J76: 106.00 | K76: 103.67 | L76: 13.48 | M76: =F76*K76+表2[[#This Row],[合计暂定数量]]*表2[[#This Row],[税率（13%）]] -> 1757.15 | O76: =K76 -> 103.67 | P76: 13.48 | Q76: =F76*O76+表2[[#This Row],[合计暂定数量]]*表2[[#This Row],[税率（13%）]] -> 1757.15 | S76: (103.67)
A77: 75 | B77: 紫铜棒 | C77: 五金材料 | D77: 任意品牌 | E77: 任意尺寸 | F77: 15 | G77: 公斤 | H77: 107 | I77: 112.35 | J77: 113.42 | K77: 110.92 | L77: 14.42 | M77: =F77*K77+表2[[#This Row],[合计暂定数量]]*表2[[#This Row],[税率（13%）]] -> 1880.15 | N77: 117.45 | O77: 110.92 | P77: 14.42 | Q77: =F77*O77+表2[[#This Row],[合计暂定数量]]*表2[[#This Row],[税率（13%）]] -> 1880.15 | R77: 0.00 | S77: 6.53
A78: 76 | B78: 紫铜板 | C78: 五金材料 | D78: 任意品牌 | E78: 任意尺寸 | F78: 10 | G78: 公斤 | H78: 107 | I78: 112.35 | J78: 113.42 | K78: 110.92 | L78: 14.42 | M78: =F78*K78+表2[[#This Row],[合计暂定数量]]*表2[[#This Row],[税率（13%）]] -> 1253.43 | N78: 147.32 | O78: 110.92 | P78: 14.42 | Q78: =F78*O78+表2[[#This Row],[合计暂定数量]]*表2[[#This Row],[税率（13%）]] -> 1253.43 | R78: 0.00 | S78: 36.40
A79: 77 | B79: 304不锈钢钢丝绳 | C79: 五金材料 | D79: 任意品牌 | E79: 直径3mm | F79: 100 | G79: 米 | H79: 3 | I79: 3.15 | J79: 3.18 | K79: 3.11 | L79: 0.40 | M79: =F79*K79+表2[[#This Row],[合计暂定数量]]*表2[[#This Row],[税率（13%）]] -> 351.43 | N79: 2.09 | O79: 2.09 | P79: 0.27 | Q79: =F79*O79+表2[[#This Row],[合计暂定数量]]*表2[[#This Row],[税率（13%）]] -> 249.43 | R79: 2.09 | S79: (1.02)
A80: 78 | B80: 304不锈钢钢丝绳 | C80: 五金材料 | D80: 任意品牌 | E80: 直径5mm | F80: 100 | G80: 米 | H80: 7 | I80: 7.35 | J80: 7.42 | K80: 7.26 | L80: 0.94 | M80: =F80*K80+表2[[#This Row],[合计暂定数量]]*表2[[#This Row],[税率（13%）]] -> 820.00 | N80: 5.50 | O80: 5.50 | P80: 0.72 | Q80: =F80*O80+表2[[#This Row],[合计暂定数量]]*表2[[#This Row],[税率（13%）]] -> 644.34 | R80: 5.50 | S80: (1.76)
A81: 79 | B81: 304不锈钢钢丝绳 | C81: 五金材料 | D81: 任意品牌 | E81: 直径8mm | F81: 30 | G81: 米 | H81: 12 | I81: 12.60 | J81: 12.72 | K81: 12.44 | L81: 1.62 | M81: =F81*K81+表2[[#This Row],[合计暂定数量]]*表2[[#This Row],[税率（13%）]] -> 421.72 | N81: 10.08 | O81: 10.08 | P81: 1.31 | Q81: =F81*O81+表2[[#This Row],[合计暂定数量]]*表2[[#This Row],[税率（13%）]] -> 350.92 | R81: 10.08 | S81: (2.36)
A82: 80 | B82: UPVC给水管 | C82: 五金材料 | D82: 联塑/日丰/南亚 | E82: dn20,PN16 | F82: 50 | G82: 米 | H82: 4 | I82: 3.12 | J82: 4.13 | K82: 3.72 | L82: 0.48 | M82: =F82*K82+表2[[#This Row],[合计暂定数量]]*表2[[#This Row],[税率（13%）]] -> 210.07 | N82: 3.49 | O82: 3.49 | P82: 0.45 | Q82: =F82*O82+表2[[#This Row],[合计暂定数量]]*表2[[#This Row],[税率（13%）]] -> 198.67 | R82: 3.49 | S82: (0.23)
A83: 81 | B83: UPVC给水管 | C83: 五金材料 | D83: 联塑/日丰/南亚 | E83: dn25,PN16 | F83: 50 | G83: 米 | H83: 5 | I83: 3.90 | J83: 5.17 | K83: 2.48 | L83: 0.32 | M83: =F83*K83+表2[[#This Row],[合计暂定数量]]*表2[[#This Row],[税率（13%）]] -> 140.12 | N83: 4.51 | O83: 2.48 | P83: 0.32 | Q83: =F83*O83+表2[[#This Row],[合计暂定数量]]*表2[[#This Row],[税率（13%）]] -> 140.12 | R83: 0.00 | S83: 2.03
A84: 82 | B84: UPVC给水管 | C84: 五金材料 | D84: 联塑/日丰/南亚 | E84: dn32,PN16 | F84: 50 | G84: 米 | H84: 8 | I84: 6.24 | J84: 8.27 | K84: 3.82 | L84: 0.50 | M84: =F84*K84+表2[[#This Row],[合计暂定数量]]*表2[[#This Row],[税率（13%）]] -> 215.83 | N84: 7.23 | O84: 3.82 | P84: 0.50 | Q84: =F84*O84+表2[[#This Row],[合计暂定数量]]*表2[[#This Row],[税率（13%）]] -> 215.83 | R84: 0.00 | S84: 3.41
A85: =ROW()-2 -> 83 | B85: UPVC给水管 | C85: 五金材料 | D85: 联塑/日丰/南亚 | E85: dn40,PN16 | F85: 50 | G85: 米 | H85: 12 | I85: 9.36 | J85: 12.40 | K85: 5.93 | L85: 0.77 | M85: =F85*K85+表2[[#This Row],[合计暂定数量]]*表2[[#This Row],[税率（13%）]] -> 335.05 | N85: 10.84 | O85: 5.93 | P85: 0.77 | Q85: =F85*O85+表2[[#This Row],[合计暂定数量]]*表2[[#This Row],[税率（13%）]] -> 335.05 | R85: 0.00 | S85: 4.91
A86: 84 | B86: UPVC给水管 | C86: 五金材料 | D86: 联塑/日丰/南亚 | E86: dn50,PN16 | F86: 50 | G86: 米 | H86: 19 | I86: 14.82 | J86: 19.64 | K86: 8.98 | L86: 1.17 | M86: =F86*K86+表2[[#This Row],[合计暂定数量]]*表2[[#This Row],[税率（13%）]] -> 507.37 | N86: 17.16 | O86: 8.98 | P86: 1.17 | Q86: =F86*O86+表2[[#This Row],[合计暂定数量]]*表2[[#This Row],[税率（13%）]] -> 507.37 | R86: 0.00 | S86: 8.18
A87: 85 | B87: UPVC给水管 | C87: 五金材料 | D87: 联塑/日丰/南亚 | E87: dn63,PN16 | F87: 100 | G87: 米 | H87: 27 | I87: 21.84 | J87: 28.94 | K87: 14.72 | L87: 1.91 | M87: =F87*K87+表2[[#This Row],[合计暂定数量]]*表2[[#This Row],[税率（13%）]] -> 1663.36 | N87: 27.11 | O87: 14.72 | P87: 1.91 | Q87: =F87*O87+表2[[#This Row],[合计暂定数量]]*表2[[#This Row],[税率（13%）]] -> 1663.36 | R87: 0.00 | S87: 12.39
A88: 86 | B88: UPVC给水管 | C88: 五金材料 | D88: 联塑/日丰/南亚 | E88: dn75,PN16 | F88: 200 | G88: 米 | H88: 37 | I88: 29.64 | J88: 39.27 | K88: 19.75 | L88: 2.57 | M88: =F88*K88+表2[[#This Row],[合计暂定数量]]*表2[[#This Row],[税率（13%）]] -> 4463.50 | N88: 37.04 | O88: 19.75 | P88: 2.57 | Q88: =F88*O88+表2[[#This Row],[合计暂定数量]]*表2[[#This Row],[税率（13%）]] -> 4463.50 | R88: 0.00 | S88: 17.29
A89: 87 | B89: UPVC给水管 | C89: 五金材料 | D89: 联塑/日丰/南亚 | E89: dn90,PN16 | F89: 200 | G89: 米 | H89: 59 | I89: 46.80 | J89: 62.01 | K89: 28.92 | L89: 3.76 | M89: =F89*K89+表2[[#This Row],[合计暂定数量]]*表2[[#This Row],[税率（13%）]] -> 6535.92 | N89: 52.40 | O89: 28.92 | P89: 3.76 | Q89: =F89*O89+表2[[#This Row],[合计暂定数量]]*表2[[#This Row],[税率（13%）]] -> 6535.92 | R89: 0.00 | S89: 23.48
A90: 88 | B90: UPVC给水管 | C90: 五金材料 | D90: 联塑/日丰/南亚 | E90: dn110,PN16 | F90: 150 | G90: 米 | H90: 73 | I90: 58.50 | J90: 77.51 | K90: 26.42 | L90: 3.43 | M90: =F90*K90+表2[[#This Row],[合计暂定数量]]*表2[[#This Row],[税率（13%）]] -> 4478.19 | N90: 65.95 | O90: 26.42 | P90: 3.43 | Q90: =F90*O90+表2[[#This Row],[合计暂定数量]]*表2[[#This Row],[税率（13%）]] -> 4478.19 | R90: 0.00 | S90: 39.53
A91: 89 | B91: UPVC给水管 | C91: 五金材料 | D91: 联塑/日丰/南亚 | E91: dn125,PN16 | F91: 50 | G91: 米 | H91: 98 | I91: 78.00 | J91: 103.35 | K91: 92.95 | L91: 12.08 | M91: =F91*K91+表2[[#This Row],[合计暂定数量]]*表2[[#This Row],[税率（13%）]] -> 5251.68 | N91: 87.64 | O91: 87.64 | P91: 11.39 | Q91: =F91*O91+表2[[#This Row],[合计暂定数量]]*表2[[#This Row],[税率（13%）]] -> 4986.18 | R91: 87.64 | S91: (5.31)
A92: 90 | B92: UPVC给水管 | C92: 五金材料 | D92: 联塑/日丰/南亚 | E92: dn140,PN16 | F92: 50 | G92: 米 | H92: 125 | I92: 99.84 | J92: 132.29 | K92: 118.98 | L92: 15.47 | M92: =F92*K92+表2[[#This Row],[合计暂定数量]]*表2[[#This Row],[税率（13%）]] -> 6722.14 | N92: 111.13 | O92: 111.13 | P92: 14.45 | Q92: =F92*O92+表2[[#This Row],[合计暂定数量]]*表2[[#This Row],[税率（13%）]] -> 6329.84 | R92: 111.13 | S92: (7.85)
A93: 91 | B93: UPVC给水管 | C93: 五金材料 | D93: 联塑/日丰/南亚 | E93: dn160,PN16 | F93: 50 | G93: 米 | H93: 146 | I93: 117.00 | J93: 155.03 | K93: 139.43 | L93: 18.13 | M93: =F93*K93+表2[[#This Row],[合计暂定数量]]*表2[[#This Row],[税率（13%）]] -> 7877.51 | N93: 131.91 | O93: 131.91 | P93: 17.15 | Q93: =F93*O93+表2[[#This Row],[合计暂定数量]]*表2[[#This Row],[税率（13%）]] -> 7501.76 | R93: 131.91 | S93: (7.51)
A94: 92 | B94: UPVC给水管 | C94: 五金材料 | D94: 联塑/日丰/南亚 | E94: dn200,PN16 | F94: 50 | G94: 米 | H94: 234 | I94: 187.20 | J94: 248.04 | K94: 223.08 | L94: 29.00 | M94: =F94*K94+表2[[#This Row],[合计暂定数量]]*表2[[#This Row],[税率（13%）]] -> 12604.02 | N94: 215.03 | O94: 215.03 | P94: 27.95 | Q94: =F94*O94+表2[[#This Row],[合计暂定数量]]*表2[[#This Row],[税率（13%）]] -> 12201.52 | R94: 215.03 | S94: (8.05)
A95: =ROW()-2 -> 93 | B95: UPVC给水管直接 | C95: 五金材料 | D95: 联塑/日丰/南亚 | E95: dn20,PN16 | F95: 25 | G95: 只 | H95: 2 | I95: 2.05 | J95: 2.07 | K95: 2.02 | L95: 0.26 | M95: =F95*K95+表2[[#This Row],[合计暂定数量]]*表2[[#This Row],[税率（13%）]] -> 57.11 | N95: 1.81 | O95: 1.81 | P95: 0.24 | Q95: =F95*O95+表2[[#This Row],[合计暂定数量]]*表2[[#This Row],[税率（13%）]] -> 51.82 | R95: 1.81 | S95: (0.21)
A96: 94 | B96: UPVC给水管直接 | C96: 五金材料 | D96: 联塑/日丰/南亚 | E96: dn25,PN16 | F96: 25 | G96: 只 | H96: 2 | I96: 2.56 | J96: 2.58 | K96: 2.53 | L96: 0.33 | M96: =F96*K96+表2[[#This Row],[合计暂定数量]]*表2[[#This Row],[税率（13%）]] -> 71.38 | N96: 1.81 | O96: 1.81 | P96: 0.24 | Q96: =F96*O96+表2[[#This Row],[合计暂定数量]]*表2[[#This Row],[税率（13%）]] -> 53.46 | R96: 1.81 | S96: (0.72)
A97: 95 | B97: UPVC给水管直接 | C97: 五金材料 | D97: 联塑/日丰/南亚 | E97: dn32,PN16 | F97: 25 | G97: 只 | H97: 3 | I97: 3.07 | J97: 3.10 | K97: 3.03 | L97: 0.39 | M97: =F97*K97+表2[[#This Row],[合计暂定数量]]*表2[[#This Row],[税率（13%）]] -> 85.66 | N97: 1.81 | O97: 1.81 | P97: 0.24 | Q97: =F97*O97+表2[[#This Row],[合计暂定数量]]*表2[[#This Row],[税率（13%）]] -> 55.10 | R97: 1.81 | S97: (1.22)
A98: 96 | B98: UPVC给水管直接 | C98: 五金材料 | D98: 联塑/日丰/南亚 | E98: dn40,PN16 | F98: 25 | G98: 只 | H98: 3 | I98: 3.58 | J98: 3.62 | K98: 3.54 | L98: 0.46 | M98: =F98*K98+表2[[#This Row],[合计暂定数量]]*表2[[#This Row],[税率（13%）]] -> 99.94 | N98: 2.71 | O98: 2.71 | P98: 0.35 | Q98: =F98*O98+表2[[#This Row],[合计暂定数量]]*表2[[#This Row],[税率（13%）]] -> 79.25 | R98: 2.71 | S98: (0.83)
A99: 97 | B99: UPVC给水管直接 | C99: 五金材料 | D99: 联塑/日丰/南亚 | E99: dn50,PN16 | F99: 25 | G99: 只 | H99: 4 | I99: 4.10 | J99: 4.13 | K99: 4.04 | L99: 0.53 | M99: =F99*K99+表2[[#This Row],[合计暂定数量]]*表2[[#This Row],[税率（13%）]] -> 114.21 | N99: 3.61 | O99: 3.61 | P99: 0.47 | Q99: =F99*O99+表2[[#This Row],[合计暂定数量]]*表2[[#This Row],[税率（13%）]] -> 103.39 | R99: 3.61 | S99: (0.43)
A100: 98 | B100: UPVC给水管直接 | C100: 五金材料 | D100: 联塑/日丰/南亚 | E100: dn63,PN16 | F100: 25 | G100: 只 | H100: 5 | I100: 5.12 | J100: 5.17 | K100: 5.05 | L100: 0.66 | M100: =F100*K100+表2[[#This Row],[合计暂定数量]]*表2[[#This Row],[税率（13%）]] -> 142.77 | N100: 4.51 | O100: 4.51 | P100: 0.59 | Q100: =F100*O100+表2[[#This Row],[合计暂定数量]]*表2[[#This Row],[税率（13%）]] -> 129.17 | R100: 4.51 | S100: (0.54)
A101: 99 | B101: UPVC给水管直接 | C101: 五金材料 | D101: 联塑/日丰/南亚 | E101: dn75,PN16 | F101: 80 | G101: 只 | H101: 10 | I101: 10.24 | J101: 10.34 | K101: 10.11 | L101: 1.31 | M101: =F101*K101+表2[[#This Row],[合计暂定数量]]*表2[[#This Row],[税率（13%）]] -> 913.72 | N101: 7.23 | O101: 7.23 | P101: 0.94 | Q101: =F101*O101+表2[[#This Row],[合计暂定数量]]*表2[[#This Row],[税率（13%）]] -> 683.52 | R101: 7.23 | S101: (2.88)
A102: 100 | B102: UPVC给水管直接 | C102: 五金材料 | D102: 联塑/日丰/南亚 | E102: dn90,PN16 | F102: 80 | G102: 只 | H102: 15 | I102: 17.00 | J102: 15.50 | K102: 15.71 | L102: 2.04 | M102: =F102*K102+表2[[#This Row],[合计暂定数量]]*表2[[#This Row],[税率（13%）]] -> 1420.11 | N102: 10.84 | O102: 10.84 | P102: 1.41 | Q102: =F102*O102+表2[[#This Row],[合计暂定数量]]*表2[[#This Row],[税率（13%）]] -> 1030.58 | R102: 10.84 | S102: (4.87)
A103: 101 | B103: UPVC给水管直接 | C103: 五金材料 | D103: 联塑/日丰/南亚 | E103: dn110,PN16 | F103: 80 | G103: 只 | H103: 20 | I103: 20.48 | J103: 20.67 | K103: 20.22 | L103: 2.63 | M103: =F103*K103+表2[[#This Row],[合计暂定数量]]*表2[[#This Row],[税率（13%）]] -> 1827.44 | N103: 18.07 | O103: =IF(K103>N103,N103,K103) -> 18.07 | P103: 2.35 | Q103: =F103*O103+表2[[#This Row],[合计暂定数量]]*表2[[#This Row],[税率（13%）]] -> 1655.84 | R103: 18.07 | S103: (2.15)
A104: 102 | B104: UPVC给水管直接 | C104: 五金材料 | D104: 联塑/日丰/南亚 | E104: dn125,PN16 | F104: 25 | G104: 只 | H104: 34 | I104: 35.83 | J104: 36.17 | K104: 35.38 | L104: 4.60 | M104: =F104*K104+表2[[#This Row],[合计暂定数量]]*表2[[#This Row],[税率（13%）]] -> 999.38 | N104: 29.81 | O104: 29.81 | P104: 3.88 | Q104: =F104*O104+表2[[#This Row],[合计暂定数量]]*表2[[#This Row],[税率（13%）]] -> 860.22 | R104: 29.81 | S104: (5.57)
A105: =ROW()-2 -> 103 | B105: UPVC给水管直接 | C105: 五金材料 | D105: 联塑/日丰/南亚 | E105: dn140,PN16 | F105: 25 | G105: 只 | H105: 44 | I105: 46.07 | J105: 46.51 | K105: 45.48 | L105: 5.91 | M105: =F105*K105+表2[[#This Row],[合计暂定数量]]*表2[[#This Row],[税率（13%）]] -> 1284.92 | N105: 41.56 | O105: 41.56 | P105: 5.40 | Q105: =F105*O105+表2[[#This Row],[合计暂定数量]]*表2[[#This Row],[税率（13%）]] -> 1186.82 | R105: 41.56 | S105: (3.92)
A106: 104 | B106: UPVC给水管直接 | C106: 五金材料 | D106: 联塑/日丰/南亚 | E106: dn160,PN16 | F106: 25 | G106: 只 | H106: 54 | I106: 56.31 | J106: 56.84 | K106: 55.59 | L106: 7.23 | M106: =F106*K106+表2[[#This Row],[合计暂定数量]]*表2[[#This Row],[税率（13%）]] -> 1570.45 | N106: 50.60 | O106: 50.60 | P106: 6.58 | Q106: =F106*O106+表2[[#This Row],[合计暂定数量]]*表2[[#This Row],[税率（13%）]] -> 1445.67 | R106: 50.60 | S106: (4.99)
A107: 105 | B107: UPVC给水管直接 | C107: 五金材料 | D107: 联塑/日丰/南亚 | E107: dn200,PN16 | F107: 25 | G107: 只 | H107: 98 | I107: 102.38 | J107: 103.35 | K107: 101.08 | L107: 13.14 | M107: =F107*K107+表2[[#This Row],[合计暂定数量]]*表2[[#This Row],[税率（13%）]] -> 2855.37 | N107: 94.87 | O107: 94.87 | P107: 12.33 | Q107: =F107*O107+表2[[#This Row],[合计暂定数量]]*表2[[#This Row],[税率（13%）]] -> 2700.24 | R107: 94.87 | S107: (6.21)
A108: 106 | B108: UPVC给水管90°弯头 | C108: 五金材料 | D108: 联塑/日丰/南亚 | E108: dn20,PN16 | F108: 20 | G108: 只 | H108: 2 | I108: 2.05 | J108: 2.07 | K108: 2.02 | L108: 0.26 | M108: =F108*K108+表2[[#This Row],[合计暂定数量]]*表2[[#This Row],[税率（13%）]] -> 45.69 | N108: 1.81 | O108: 1.81 | P108: 0.24 | Q108: =F108*O108+表2[[#This Row],[合计暂定数量]]*表2[[#This Row],[税率（13%）]] -> 41.46 | R108: 1.81 | S108: (0.21)
A109: 107 | B109: UPVC给水管90°弯头 | C109: 五金材料 | D109: 联塑/日丰/南亚 | E109: dn25,PN16 | F109: 20 | G109: 只 | H109: 2 | I109: 2.56 | J109: 2.58 | K109: 2.53 | L109: 0.33 | M109: =F109*K109+表2[[#This Row],[合计暂定数量]]*表2[[#This Row],[税率（13%）]] -> 57.11 | N109: 1.81 | O109: 1.81 | P109: 0.24 | Q109: =F109*O109+表2[[#This Row],[合计暂定数量]]*表2[[#This Row],[税率（13%）]] -> 42.77 | R109: 1.81 | S109: (0.72)
A110: 108 | B110: UPVC给水管90°弯头 | C110: 五金材料 | D110: 联塑/日丰/南亚 | E110: dn32,PN16 | F110: 20 | G110: 只 | H110: 3 | I110: 3.07 | J110: 3.10 | K110: 3.03 | L110: 0.39 | M110: =F110*K110+表2[[#This Row],[合计暂定数量]]*表2[[#This Row],[税率（13%）]] -> 68.53 | N110: 2.71 | O110: 2.71 | P110: 0.35 | Q110: =F110*O110+表2[[#This Row],[合计暂定数量]]*表2[[#This Row],[税率（13%）]] -> 62.08 | R110: 2.71 | S110: (0.32)
A111: 109 | B111: UPVC给水管90°弯头 | C111: 五金材料 | D111: 联塑/日丰/南亚 | E111: dn40,PN16 | F111: 20 | G111: 只 | H111: 4 | I111: 4.10 | J111: 4.13 | K111: 4.04 | L111: 0.53 | M111: =F111*K111+表2[[#This Row],[合计暂定数量]]*表2[[#This Row],[税率（13%）]] -> 91.37 | N111: 3.61 | O111: 3.61 | P111: 0.47 | Q111: =F111*O111+表2[[#This Row],[合计暂定数量]]*表2[[#This Row],[税率（13%）]] -> 82.71 | R111: 3.61 | S111: (0.43)
A112: 110 | B112: UPVC给水管90°弯头 | C112: 五金材料 | D112: 联塑/日丰/南亚 | E112: dn50,PN16 | F112: 20 | G112: 只 | H112: 7 | I112: 7.17 | J112: 7.23 | K112: 7.08 | L112: 0.92 | M112: =F112*K112+表2[[#This Row],[合计暂定数量]]*表2[[#This Row],[税率（13%）]] -> 159.90 | N112: 5.42 | O112: 5.42 | P112: 0.70 | Q112: =F112*O112+表2[[#This Row],[合计暂定数量]]*表2[[#This Row],[税率（13%）]] -> 126.80 | R112: 5.42 | S112: (1.66)
A113: 111 | B113: UPVC给水管90°弯头 | C113: 五金材料 | D113: 联塑/日丰/南亚 | E113: dn63,PN16 | F113: 35 | G113: 只 | H113: 10 | I113: 10.24 | J113: 10.34 | K113: 10.11 | L113: 1.31 | M113: =F113*K113+表2[[#This Row],[合计暂定数量]]*表2[[#This Row],[税率（13%）]] -> 399.75 | N113: 8.13 | O113: 8.13 | P113: 1.06 | Q113: =F113*O113+表2[[#This Row],[合计暂定数量]]*表2[[#This Row],[税率（13%）]] -> 330.54 | R113: 8.13 | S113: (1.98)
A114: 112 | B114: UPVC给水管90°弯头 | C114: 五金材料 | D114: 联塑/日丰/南亚 | E114: dn75,PN16 | F114: 35 | G114: 只 | H114: 15 | I114: 17.00 | J114: 15.50 | K114: 15.71 | L114: 2.04 | M114: =F114*K114+表2[[#This Row],[合计暂定数量]]*表2[[#This Row],[税率（13%）]] -> 621.30 | N114: 13.55 | O114: 13.55 | P114: 1.76 | Q114: =F114*O114+表2[[#This Row],[合计暂定数量]]*表2[[#This Row],[税率（13%）]] -> 545.73 | R114: 13.55 | S114: (2.16)
A115: =ROW()-2 -> 113 | B115: UPVC给水管90°弯头 | C115: 五金材料 | D115: 联塑/日丰/南亚 | E115: dn90,PN16 | F115: 35 | G115: 只 | H115: 20 | I115: 22.00 | J115: 20.67 | K115: 20.72 | L115: 2.69 | M115: =F115*K115+表2[[#This Row],[合计暂定数量]]*表2[[#This Row],[税率（13%）]] -> 819.61 | N115: 18.07 | O115: 18.07 | P115: 2.35 | Q115: =F115*O115+表2[[#This Row],[合计暂定数量]]*表2[[#This Row],[税率（13%）]] -> 726.74 | R115: 18.07 | S115: (2.65)
A116: 114 | B116: UPVC给水管90°弯头 | C116: 五金材料 | D116: 联塑/日丰/南亚 | E116: dn110,PN16 | F116: 35 | G116: 只 | H116: 39 | I116: 40.95 | J116: 41.34 | K116: 40.43 | L116: 5.26 | M116: =F116*K116+表2[[#This Row],[合计暂定数量]]*表2[[#This Row],[税率（13%）]] -> 1599.01 | N116: 35.23 | O116: 35.23 | P116: 4.58 | Q116: =F116*O116+表2[[#This Row],[合计暂定数量]]*表2[[#This Row],[税率（13%）]] -> 1417.01 | R116: 35.23 | S116: (5.20)
A117: 115 | B117: UPVC给水管90°弯头 | C117: 五金材料 | D117: 联塑/日丰/南亚 | E117: dn125,PN16 | F117: 20 | G117: 只 | H117: 68 | I117: 71.66 | J117: 72.35 | K117: 70.75 | L117: 9.20 | M117: =F117*K117+表2[[#This Row],[合计暂定数量]]*表2[[#This Row],[税率（13%）]] -> 1599.01 | N117: 60.53 | O117: 60.53 | P117: 7.87 | Q117: =F117*O117+表2[[#This Row],[合计暂定数量]]*表2[[#This Row],[税率（13%）]] -> 1394.56 | R117: 60.53 | S117: (10.22)
A118: 116 | B118: UPVC给水管90°弯头 | C118: 五金材料 | D118: 联塑/日丰/南亚 | E118: dn140,PN16 | F118: 20 | G118: 只 | H118: 98 | I118: 102.38 | J118: 103.35 | K118: 101.08 | L118: 13.14 | M118: =F118*K118+表2[[#This Row],[合计暂定数量]]*表2[[#This Row],[税率（13%）]] -> 2284.30 | N118: 91.25 | O118: 91.25 | P118: 11.86 | Q118: =F118*O118+表2[[#This Row],[合计暂定数量]]*表2[[#This Row],[税率（13%）]] -> 2087.80 | R118: 91.25 | S118: (9.83)
A119: 117 | B119: UPVC给水管90°弯头 | C119: 五金材料 | D119: 联塑/日丰/南亚 | E119: dn160,PN16 | F119: 20 | G119: 只 | H119: 112 | I119: 117.73 | J119: 118.85 | K119: 116.24 | L119: 15.11 | M119: =F119*K119+表2[[#This Row],[合计暂定数量]]*表2[[#This Row],[税率（13%）]] -> 2626.94 | N119: 101.20 | O119: 101.20 | P119: 13.16 | Q119: =F119*O119+表2[[#This Row],[合计暂定数量]]*表2[[#This Row],[税率（13%）]] -> 2326.21 | R119: 101.20 | S119: (15.04)
A120: 118 | B120: UPVC给水管90°弯头 | C120: 五金材料 | D120: 联塑/日丰/南亚 | E120: dn200,PN16 | F120: 20 | G120: 只 | H120: 195 | I120: 204.75 | J120: 206.70 | K120: 202.15 | L120: 26.28 | M120: =F120*K120+表2[[#This Row],[合计暂定数量]]*表2[[#This Row],[税率（13%）]] -> 4568.59 | N120: 178.89 | O120: 178.89 | P120: 23.26 | Q120: =F120*O120+表2[[#This Row],[合计暂定数量]]*表2[[#This Row],[税率（13%）]] -> 4103.39 | R120: 178.89 | S120: (23.26)
A121: 119 | B121: UPVC给水管45°弯头 | C121: 五金材料 | D121: 联塑/日丰/南亚 | E121: dn20,PN16 | F121: 20 | G121: 只 | H121: 2 | I121: 2.05 | J121: 2.07 | K121: 2.02 | L121: 0.26 | M121: =F121*K121+表2[[#This Row],[合计暂定数量]]*表2[[#This Row],[税率（13%）]] -> 45.69 | N121: 1.81 | O121: 1.81 | P121: 0.24 | Q121: =F121*O121+表2[[#This Row],[合计暂定数量]]*表2[[#This Row],[税率（13%）]] -> 41.46 | R121: 1.81 | S121: (0.21)
A122: 120 | B122: UPVC给水管45°弯头 | C122: 五金材料 | D122: 联塑/日丰/南亚 | E122: dn25,PN16 | F122: 20 | G122: 只 | H122: 2 | I122: 2.56 | J122: 2.58 | K122: 2.53 | L122: 0.33 | M122: =F122*K122+表2[[#This Row],[合计暂定数量]]*表2[[#This Row],[税率（13%）]] -> 57.11 | N122: 1.81 | O122: 1.81 | P122: 0.24 | Q122: =F122*O122+表2[[#This Row],[合计暂定数量]]*表2[[#This Row],[税率（13%）]] -> 42.77 | R122: 1.81 | S122: (0.72)
A123: 121 | B123: UPVC给水管45°弯头 | C123: 五金材料 | D123: 联塑/日丰/南亚 | E123: dn32,PN16 | F123: 20 | G123: 只 | H123: 3 | I123: 3.07 | J123: 3.10 | K123: 3.03 | L123: 0.39 | M123: =F123*K123+表2[[#This Row],[合计暂定数量]]*表2[[#This Row],[税率（13%）]] -> 68.53 | N123: 2.56 | O123: 2.56 | P123: 0.33 | Q123: =F123*O123+表2[[#This Row],[合计暂定数量]]*表2[[#This Row],[税率（13%）]] -> 59.08 | R123: 2.56 | S123: (0.47)
A124: 122 | B124: UPVC给水管45°弯头 | C124: 五金材料 | D124: 联塑/日丰/南亚 | E124: dn40,PN16 | F124: 20 | G124: 只 | H124: 4 | I124: 4.10 | J124: 4.13 | K124: 4.04 | L124: 0.53 | M124: =F124*K124+表2[[#This Row],[合计暂定数量]]*表2[[#This Row],[税率（13%）]] -> 91.37 | N124: 2.71 | O124: 2.71 | P124: 0.35 | Q124: =F124*O124+表2[[#This Row],[合计暂定数量]]*表2[[#This Row],[税率（13%）]] -> 64.71 | R124: 2.71 | S124: (1.33)
A125: =ROW()-2 -> 123 | B125: UPVC给水管45°弯头 | C125: 五金材料 | D125: 联塑/日丰/南亚 | E125: dn50,PN16 | F125: 20 | G125: 只 | H125: 7 | I125: 7.17 | J125: 7.23 | K125: 7.08 | L125: 0.92 | M125: =F125*K125+表2[[#This Row],[合计暂定数量]]*表2[[#This Row],[税率（13%）]] -> 159.90 | N125: 4.51 | O125: 4.51 | P125: 0.59 | Q125: =F125*O125+表2[[#This Row],[合计暂定数量]]*表2[[#This Row],[税率（13%）]] -> 108.60 | R125: 4.51 | S125: (2.57)
A126: 124 | B126: UPVC给水管45°弯头 | C126: 五金材料 | D126: 联塑/日丰/南亚 | E126: dn63,PN16 | F126: 35 | G126: 只 | H126: 10 | I126: 10.24 | J126: 10.34 | K126: 10.11 | L126: 1.31 | M126: =F126*K126+表2[[#This Row],[合计暂定数量]]*表2[[#This Row],[税率（13%）]] -> 399.75 | N126: 6.32 | O126: 6.32 | P126: 0.82 | Q126: =F126*O126+表2[[#This Row],[合计暂定数量]]*表2[[#This Row],[税率（13%）]] -> 267.19 | R126: 6.32 | S126: (3.79)
A127: 125 | B127: UPVC给水管45°弯头 | C127: 五金材料 | D127: 联塑/日丰/南亚 | E127: dn75,PN16 | F127: 35 | G127: 只 | H127: 15 | I127: 17.00 | J127: 15.50 | K127: 15.71 | L127: 2.04 | M127: =F127*K127+表2[[#This Row],[合计暂定数量]]*表2[[#This Row],[税率（13%）]] -> 621.30 | N127: 10.84 | O127: 10.84 | P127: 1.41 | Q127: =F127*O127+表2[[#This Row],[合计暂定数量]]*表2[[#This Row],[税率（13%）]] -> 450.88 | R127: 10.84 | S127: (4.87)
A128: 126 | B128: UPVC给水管45°弯头 | C128: 五金材料 | D128: 联塑/日丰/南亚 | E128: dn90,PN16 | F128: 35 | G128: 只 | H128: 20 | I128: 22.00 | J128: 20.67 | K128: 20.72 | L128: 2.69 | M128: =F128*K128+表2[[#This Row],[合计暂定数量]]*表2[[#This Row],[税率（13%）]] -> 819.61 | N128: 16.26 | O128: 16.26 | P128: 2.11 | Q128: =F128*O128+表2[[#This Row],[合计暂定数量]]*表2[[#This Row],[税率（13%）]] -> 663.39 | R128: 16.26 | S128: (4.46)
A129: 127 | B129: UPVC给水管45°弯头 | C129: 五金材料 | D129: 联塑/日丰/南亚 | E129: dn110,PN16 | F129: 35 | G129: 只 | H129: 39 | I129: 40.95 | J129: 41.34 | K129: 40.43 | L129: 5.26 | M129: =F129*K129+表2[[#This Row],[合计暂定数量]]*表2[[#This Row],[税率（13%）]] -> 1599.01 | N129: 25.30 | O129: 25.30 | P129: 3.29 | Q129: =F129*O129+表2[[#This Row],[合计暂定数量]]*表2[[#This Row],[税率（13%）]] -> 1069.46 | R129: 25.30 | S129: (15.13)
A130: 128 | B130: UPVC给水管45°弯头 | C130: 五金材料 | D130: 联塑/日丰/南亚 | E130: dn125,PN16 | F130: 20 | G130: 只 | H130: 68 | I130: 71.66 | J130: 72.35 | K130: 70.75 | L130: 9.20 | M130: =F130*K130+表2[[#This Row],[合计暂定数量]]*表2[[#This Row],[税率（13%）]] -> 1599.01 | N130: 45.18 | O130: 45.18 | P130: 5.87 | Q130: =F130*O130+表2[[#This Row],[合计暂定数量]]*表2[[#This Row],[税率（13%）]] -> 1087.56 | R130: 45.18 | S130: (25.57)
A131: 129 | B131: UPVC给水管45°弯头 | C131: 五金材料 | D131: 联塑/日丰/南亚 | E131: dn140,PN16 | F131: 20 | G131: 只 | H131: 98 | I131: 102.38 | J131: 103.35 | K131: 101.08 | L131: 13.14 | M131: =F131*K131+表2[[#This Row],[合计暂定数量]]*表2[[#This Row],[税率（13%）]] -> 2284.30 | N131: 56.92 | O131: 56.92 | P131: 7.40 | Q131: =F131*O131+表2[[#This Row],[合计暂定数量]]*表2[[#This Row],[税率（13%）]] -> 1401.20 | R131: 56.92 | S131: (44.16)
A132: 130 | B132: UPVC给水管45°弯头 | C132: 五金材料 | D132: 联塑/日丰/南亚 | E132: dn160,PN16 | F132: 20 | G132: 只 | H132: 112 | I132: 117.73 | J132: 118.85 | K132: 116.24 | L132: =K132*0.13 -> 15.11 | M132: =F132*K132+表2[[#This Row],[合计暂定数量]]*表2[[#This Row],[税率（13%）]] -> 2626.94 | N132: 70.48 | O132: 70.48 | P132: =O132*0.13 -> 9.16 | Q132: =F132*O132+表2[[#This Row],[合计暂定数量]]*表2[[#This Row],[税率（13%）]] -> 1711.81 | R132: =IF(K132>N132,N132,0) -> 70.48 | S132: =N132-K132 -> (45.76)
A133: 131 | B133: UPVC给水管45°弯头 | C133: 五金材料 | D133: 联塑/日丰/南亚 | E133: dn200,PN16 | F133: 20 | G133: 只 | H133: 195 | I133: 204.75 | J133: 206.70 | K133: 202.15 | L133: 26.28 | M133: =F133*K133+表2[[#This Row],[合计暂定数量]]*表2[[#This Row],[税率（13%）]] -> 4568.59 | N133: 138.24 | O133: 138.24 | P133: 17.97 | Q133: =F133*O133+表2[[#This Row],[合计暂定数量]]*表2[[#This Row],[税率（13%）]] -> 3290.39 | R133: 138.24 | S133: (63.91)
A134: 132 | B134: UPVC给水管正三通 | C134: 五金材料 | D134: 联塑/日丰/南亚 | E134: dn20,PN16 | F134: 20 | G134: 只 | H134: 2 | I134: 2.05 | J134: 2.07 | K134: 2.02 | L134: 0.26 | M134: =F134*K134+表2[[#This Row],[合计暂定数量]]*表2[[#This Row],[税率（13%）]] -> 45.69 | N134: 1.81 | O134: 1.81 | P134: 0.24 | Q134: =F134*O134+表2[[#This Row],[合计暂定数量]]*表2[[#This Row],[税率（13%）]] -> 41.46 | R134: 1.81 | S134: (0.21)
A135: =ROW()-2 -> 133 | B135: UPVC给水管正三通 | C135: 五金材料 | D135: 联塑/日丰/南亚 | E135: dn25,PN16 | F135: 20 | G135: 只 | H135: 2 | I135: 2.56 | J135: 2.58 | K135: 2.53 | L135: 0.33 | M135: =F135*K135+表2[[#This Row],[合计暂定数量]]*表2[[#This Row],[税率（13%）]] -> 57.11 | N135: 2.71 | O135: =IF(K135>N135,N135,K135) -> 2.53 | P135: 0.33 | Q135: =F135*O135+表2[[#This Row],[合计暂定数量]]*表2[[#This Row],[税率（13%）]] -> 57.11 | R135: 0.00 | S135: 0.18
A136: 134 | B136: UPVC给水管正三通 | C136: 五金材料 | D136: 联塑/日丰/南亚 | E136: dn32,PN16 | F136: 20 | G136: 只 | H136: 3 | I136: 3.07 | J136: 3.10 | K136: 3.03 | L136: 0.39 | M136: =F136*K136+表2[[#This Row],[合计暂定数量]]*表2[[#This Row],[税率（13%）]] -> 68.53 | N136: 2.71 | O136: 2.71 | P136: 0.35 | Q136: =F136*O136+表2[[#This Row],[合计暂定数量]]*表2[[#This Row],[税率（13%）]] -> 62.08 | R136: 2.71 | S136: (0.32)
A137: 135 | B137: UPVC给水管正三通 | C137: 五金材料 | D137: 联塑/日丰/南亚 | E137: dn40,PN16 | F137: 20 | G137: 只 | H137: 5 | I137: 5.12 | J137: 5.17 | K137: 5.05 | L137: 0.66 | M137: =F137*K137+表2[[#This Row],[合计暂定数量]]*表2[[#This Row],[税率（13%）]] -> 114.21 | N137: 4.51 | O137: 4.51 | P137: 0.59 | Q137: =F137*O137+表2[[#This Row],[合计暂定数量]]*表2[[#This Row],[税率（13%）]] -> 103.34 | R137: 4.51 | S137: (0.54)
A138: 136 | B138: UPVC给水管正三通 | C138: 五金材料 | D138: 联塑/日丰/南亚 | E138: dn50,PN16 | F138: 20 | G138: 只 | H138: 8 | I138: 8.19 | J138: 8.27 | K138: 8.09 | L138: 1.05 | M138: =F138*K138+表2[[#This Row],[合计暂定数量]]*表2[[#This Row],[税率（13%）]] -> 182.74 | N138: 7.23 | O138: 7.23 | P138: 0.94 | Q138: =F138*O138+表2[[#This Row],[合计暂定数量]]*表2[[#This Row],[税率（13%）]] -> 165.62 | R138: 7.23 | S138: (0.86)
A139: 137 | B139: UPVC给水管正三通 | C139: 五金材料 | D139: 联塑/日丰/南亚 | E139: dn63,PN16 | F139: 35 | G139: 只 | H139: 15 | I139: 17.00 | J139: 15.50 | K139: 15.71 | L139: 2.04 | M139: =F139*K139+表2[[#This Row],[合计暂定数量]]*表2[[#This Row],[税率（13%）]] -> 621.30 | N139: 11.74 | O139: 11.74 | P139: 1.53 | Q139: =F139*O139+表2[[#This Row],[合计暂定数量]]*表2[[#This Row],[税率（13%）]] -> 482.38 | R139: 11.74 | S139: (3.97)
A140: 138 | B140: UPVC给水管正三通 | C140: 五金材料 | D140: 联塑/日丰/南亚 | E140: dn75,PN16 | F140: 35 | G140: 只 | H140: 20 | I140: 22.00 | J140: 20.67 | K140: 20.72 | L140: 2.69 | M140: =F140*K140+表2[[#This Row],[合计暂定数量]]*表2[[#This Row],[税率（13%）]] -> 819.61 | N140: 17.16 | O140: 17.16 | P140: 2.23 | Q140: =F140*O140+表2[[#This Row],[合计暂定数量]]*表2[[#This Row],[税率（13%）]] -> 694.89 | R140: 17.16 | S140: (3.56)
A141: 139 | B141: UPVC给水管正三通 | C141: 五金材料 | D141: 联塑/日丰/南亚 | E141: dn90,PN16 | F141: 35 | G141: 只 | H141: 29 | I141: 30.71 | J141: 31.01 | K141: 30.32 | L141: 3.94 | M141: =F141*K141+表2[[#This Row],[合计暂定数量]]*表2[[#This Row],[税率（13%）]] -> 1199.25 | N141: 25.30 | O141: 25.30 | P141: 3.29 | Q141: =F141*O141+表2[[#This Row],[合计暂定数量]]*表2[[#This Row],[税率（13%）]] -> 1023.47 | R141: 25.30 | S141: (5.02)
A142: 140 | B142: UPVC给水管正三通 | C142: 五金材料 | D142: 联塑/日丰/南亚 | E142: dn110,PN16 | F142: 35 | G142: 只 | H142: 49 | I142: 51.19 | J142: 51.68 | K142: 50.54 | L142: 6.57 | M142: =F142*K142+表2[[#This Row],[合计暂定数量]]*表2[[#This Row],[税率（13%）]] -> 1998.76 | N142: 44.27 | O142: 44.27 | P142: 5.76 | Q142: =F142*O142+表2[[#This Row],[合计暂定数量]]*表2[[#This Row],[税率（13%）]] -> 1779.40 | R142: 44.27 | S142: (6.27)
A143: 141 | B143: UPVC给水管正三通 | C143: 五金材料 | D143: 联塑/日丰/南亚 | E143: dn125,PN16 | F143: 20 | G143: 只 | H143: 88 | I143: 92.14 | J143: 93.02 | K143: 90.97 | L143: 11.83 | M143: =F143*K143+表2[[#This Row],[合计暂定数量]]*表2[[#This Row],[税率（13%）]] -> 2055.87 | N143: 93.06 | O143: 90.97 | P143: 11.83 | Q143: =F143*O143+表2[[#This Row],[合计暂定数量]]*表2[[#This Row],[税率（13%）]] -> 2055.87 | R143: 0.00 | S143: 2.09
A144: 142 | B144: UPVC给水管正三通 | C144: 五金材料 | D144: 联塑/日丰/南亚 | E144: dn140,PN16 | F144: 20 | G144: 只 | H144: 107 | I144: 112.61 | J144: 113.69 | K144: 111.18 | L144: 14.45 | M144: =F144*K144+表2[[#This Row],[合计暂定数量]]*表2[[#This Row],[税率（13%）]] -> 2512.72 | N144: 101.20 | O144: 101.20 | P144: 13.16 | Q144: =F144*O144+表2[[#This Row],[合计暂定数量]]*表2[[#This Row],[税率（13%）]] -> 2313.07 | R144: 101.20 | S144: (9.98)
A145: =ROW()-2 -> 143 | B145: UPVC给水管正三通 | C145: 五金材料 | D145: 联塑/日丰/南亚 | E145: dn160,PN16 | F145: 20 | G145: 只 | H145: 127 | I145: 133.09 | J145: 134.36 | K145: 131.40 | L145: 17.08 | M145: =F145*K145+表2[[#This Row],[合计暂定数量]]*表2[[#This Row],[税率（13%）]] -> 2969.58 | N145: 121.07 | O145: 121.07 | P145: 15.74 | Q145: =F145*O145+表2[[#This Row],[合计暂定数量]]*表2[[#This Row],[税率（13%）]] -> 2763.03 | R145: 121.07 | S145: (10.33)
A146: 144 | B146: UPVC给水管正三通 | C146: 五金材料 | D146: 联塑/日丰/南亚 | E146: dn200,PN16 | F146: 20 | G146: 只 | H146: 224 | I146: 235.46 | J146: 237.71 | K146: 232.47 | L146: 30.22 | M146: =F146*K146+表2[[#This Row],[合计暂定数量]]*表2[[#This Row],[税率（13%）]] -> 5253.88 | N146: 218.65 | O146: 218.65 | P146: 28.42 | Q146: =F146*O146+表2[[#This Row],[合计暂定数量]]*表2[[#This Row],[税率（13%）]] -> 4977.43 | R146: 218.65 | S146: (13.82)
A147: 145 | B147: UPVC给水管异径三通 | C147: 五金材料 | D147: 联塑/日丰/南亚 | E147: dn32转dn20，PN16 | F147: 10 | G147: 只 | H147: 2 | I147: 2.05 | J147: 2.07 | K147: 2.02 | L147: 0.26 | M147: =F147*K147+表2[[#This Row],[合计暂定数量]]*表2[[#This Row],[税率（13%）]] -> 22.84 | N147: 2.71 | O147: 2.02 | P147: 0.26 | Q147: =F147*O147+表2[[#This Row],[合计暂定数量]]*表2[[#This Row],[税率（13%）]] -> 22.84 | R147: 0.00 | S147: 0.69
A148: 146 | B148: UPVC给水管异径三通 | C148: 五金材料 | D148: 联塑/日丰/南亚 | E148: dn40转dn20，PN16 | F148: 10 | G148: 只 | H148: 2 | I148: 2.56 | J148: 2.58 | K148: 2.53 | L148: 0.33 | M148: =F148*K148+表2[[#This Row],[合计暂定数量]]*表2[[#This Row],[税率（13%）]] -> 28.55 | N148: 3.61 | O148: 2.53 | P148: 0.33 | Q148: =F148*O148+表2[[#This Row],[合计暂定数量]]*表2[[#This Row],[税率（13%）]] -> 28.55 | R148: 0.00 | S148: 1.08
A149: 147 | B149: UPVC给水管异径三通 | C149: 五金材料 | D149: 联塑/日丰/南亚 | E149: dn40转dn32，PN16 | F149: 10 | G149: 只 | H149: 3 | I149: 3.07 | J149: 3.10 | K149: 3.03 | L149: 0.39 | M149: =F149*K149+表2[[#This Row],[合计暂定数量]]*表2[[#This Row],[税率（13%）]] -> 34.26 | N149: 3.61 | O149: 3.03 | P149: 0.39 | Q149: =F149*O149+表2[[#This Row],[合计暂定数量]]*表2[[#This Row],[税率（13%）]] -> 34.26 | R149: 0.00 | S149: 0.58
A150: 148 | B150: UPVC给水管异径三通 | C150: 五金材料 | D150: 联塑/日丰/南亚 | E150: dn50转dn40，PN16 | F150: 10 | G150: 只 | H150: 5 | I150: 5.12 | J150: 5.17 | K150: 5.05 | L150: 0.66 | M150: =F150*K150+表2[[#This Row],[合计暂定数量]]*表2[[#This Row],[税率（13%）]] -> 57.11 | N150: 6.32 | O150: 5.05 | P150: 0.66 | Q150: =F150*O150+表2[[#This Row],[合计暂定数量]]*表2[[#This Row],[税率（13%）]] -> 57.11 | R150: 0.00 | S150: 1.27
A151: 149 | B151: UPVC给水管异径三通 | C151: 五金材料 | D151: 联塑/日丰/南亚 | E151: dn50转dn32，PN16 | F151: 10 | G151: 只 | H151: 8 | I151: 8.19 | J151: 8.27 | K151: 8.09 | L151: 1.05 | M151: =F151*K151+表2[[#This Row],[合计暂定数量]]*表2[[#This Row],[税率（13%）]] -> 91.37 | N151: 5.42 | O151: 5.42 | P151: 0.70 | Q151: =F151*O151+表2[[#This Row],[合计暂定数量]]*表2[[#This Row],[税率（13%）]] -> 64.71 | R151: 5.42 | S151: (2.67)
A152: 150 | B152: UPVC给水管异径三通 | C152: 五金材料 | D152: 联塑/日丰/南亚 | E152: dn63转dn50，PN16 | F152: 10 | G152: 只 | H152: 15 | I152: 17.00 | J152: 15.50 | K152: 15.71 | L152: 2.04 | M152: =F152*K152+表2[[#This Row],[合计暂定数量]]*表2[[#This Row],[税率（13%）]] -> 177.51 | N152: 9.04 | O152: 9.04 | P152: 1.18 | Q152: =F152*O152+表2[[#This Row],[合计暂定数量]]*表2[[#This Row],[税率（13%）]] -> 110.82 | R152: 9.04 | S152: (6.67)
A153: 151 | B153: UPVC给水管异径三通 | C153: 五金材料 | D153: 联塑/日丰/南亚 | E153: dn75转dn63，PN16 | F153: 10 | G153: 只 | H153: 20 | I153: 22.00 | J153: 20.67 | K153: 20.72 | L153: 2.69 | M153: =F153*K153+表2[[#This Row],[合计暂定数量]]*表2[[#This Row],[税率（13%）]] -> 234.17 | N153: 15.36 | O153: 15.36 | P153: 2.00 | Q153: =F153*O153+表2[[#This Row],[合计暂定数量]]*表2[[#This Row],[税率（13%）]] -> 180.54 | R153: 15.36 | S153: (5.36)
A154: 152 | B154: UPVC给水管异径三通 | C154: 五金材料 | D154: 联塑/日丰/南亚 | E154: dn90转dn75，PN16 | F154: 10 | G154: 只 | H154: 29 | I154: 30.71 | J154: 31.01 | K154: 30.32 | L154: 3.94 | M154: =F154*K154+表2[[#This Row],[合计暂定数量]]*表2[[#This Row],[税率（13%）]] -> 342.64 | N154: 21.68 | O154: 21.68 | P154: 2.82 | Q154: =F154*O154+表2[[#This Row],[合计暂定数量]]*表2[[#This Row],[税率（13%）]] -> 256.22 | R154: 21.68 | S154: (8.64)
A155: 153 | B155: UPVC给水管异径三通 | C155: 五金材料 | D155: 联塑/日丰/南亚 | E155: dn110转dn90，PN16 | F155: 10 | G155: 只 | H155: 49 | I155: 51.19 | J155: 51.68 | K155: 50.54 | L155: 6.57 | M155: =F155*K155+表2[[#This Row],[合计暂定数量]]*表2[[#This Row],[税率（13%）]] -> 571.07 | N155: 37.04 | O155: 37.04 | P155: 4.82 | Q155: =F155*O155+表2[[#This Row],[合计暂定数量]]*表2[[#This Row],[税率（13%）]] -> 436.10 | R155: 37.04 | S155: (13.50)
A156: 154 | B156: UPVC给水管异径三通 | C156: 五金材料 | D156: 联塑/日丰/南亚 | E156: dn125转dn110，PN16 | F156: 10 | G156: 只 | H156: 88 | I156: 92.14 | J156: 93.02 | K156: 90.97 | L156: 11.83 | M156: =F156*K156+表2[[#This Row],[合计暂定数量]]*表2[[#This Row],[税率（13%）]] -> 1027.93 | O156: =K156 -> 90.97 | P156: 11.83 | Q156: =F156*O156+表2[[#This Row],[合计暂定数量]]*表2[[#This Row],[税率（13%）]] -> 1027.93 | S156: (90.97)
A157: 155 | B157: UPVC给水管异径三通 | C157: 五金材料 | D157: 联塑/日丰/南亚 | E157: dn140转dn125，PN16 | F157: 10 | G157: 只 | H157: 107 | I157: 112.61 | J157: 113.69 | K157: 111.18 | L157: 14.45 | M157: =F157*K157+表2[[#This Row],[合计暂定数量]]*表2[[#This Row],[税率（13%）]] -> 1256.36 | O157: 111.18 | P157: 14.45 | Q157: =F157*O157+表2[[#This Row],[合计暂定数量]]*表2[[#This Row],[税率（13%）]] -> 1256.36 | S157: (111.18)
A158: =ROW()-2 -> 156 | B158: UPVC给水管异径三通 | C158: 五金材料 | D158: 联塑/日丰/南亚 | E158: Dn160转Dn110，PN16 | F158: 10 | G158: 只 | H158: 127 | I158: 133.09 | J158: 134.36 | K158: 131.40 | L158: 17.08 | M158: =F158*K158+表2[[#This Row],[合计暂定数量]]*表2[[#This Row],[税率（13%）]] -> 1484.79 | O158: 131.40 | P158: 17.08 | Q158: =F158*O158+表2[[#This Row],[合计暂定数量]]*表2[[#This Row],[税率（13%）]] -> 1484.79 | S158: (131.40)
A159: 157 | B159: UPVC给水管异径三通 | C159: 五金材料 | D159: 联塑/日丰/南亚 | E159: Dn200转Dn160，PN16 | F159: 10 | G159: 只 | H159: 224 | I159: 235.46 | J159: 237.71 | K159: 232.47 | L159: 30.22 | M159: =F159*K159+表2[[#This Row],[合计暂定数量]]*表2[[#This Row],[税率（13%）]] -> 2626.94 | O159: 232.47 | P159: 30.22 | Q159: =F159*O159+表2[[#This Row],[合计暂定数量]]*表2[[#This Row],[税率（13%）]] -> 2626.94 | S159: (232.47)
A160: 158 | B160: UPVC带法兰接头 | C160: 五金材料 | D160: 联塑/日丰/南亚 | E160: dn20,PN16 | F160: 10 | G160: 只 | H160: 10 | I160: 10.24 | J160: 10.34 | K160: 10.11 | L160: 1.31 | M160: =F160*K160+表2[[#This Row],[合计暂定数量]]*表2[[#This Row],[税率（13%）]] -> 114.21 | N160: 10.84 | O160: 10.11 | P160: 1.31 | Q160: =F160*O160+表2[[#This Row],[合计暂定数量]]*表2[[#This Row],[税率（13%）]] -> 114.21 | R160: 0.00 | S160: 0.73
A161: 159 | B161: UPVC带法兰接头 | C161: 五金材料 | D161: 联塑/日丰/南亚 | E161: dn25,PN16 | F161: 10 | G161: 只 | H161: 13 | I161: 13.31 | J161: 13.44 | K161: 13.14 | L161: 1.71 | M161: =F161*K161+表2[[#This Row],[合计暂定数量]]*表2[[#This Row],[税率（13%）]] -> 148.48 | N161: 13.55 | O161: 13.14 | P161: 1.71 | Q161: =F161*O161+表2[[#This Row],[合计暂定数量]]*表2[[#This Row],[税率（13%）]] -> 148.48 | R161: 0.00 | S161: 0.41
A162: 160 | B162: UPVC带法兰接头 | C162: 五金材料 | D162: 联塑/日丰/南亚 | E162: dn32,PN16 | F162: 10 | G162: 只 | H162: 17 | I162: 19.00 | J162: 17.57 | K162: 17.71 | L162: 2.30 | M162: =F162*K162+表2[[#This Row],[合计暂定数量]]*表2[[#This Row],[税率（13%）]] -> 200.18 | N162: 13.55 | O162: 13.55 | P162: 1.76 | Q162: =F162*O162+表2[[#This Row],[合计暂定数量]]*表2[[#This Row],[税率（13%）]] -> 158.53 | R162: 13.55 | S162: (4.16)
A163: 161 | B163: UPVC带法兰接头 | C163: 五金材料 | D163: 联塑/日丰/南亚 | E163: dn40,PN16 | F163: 10 | G163: 只 | H163: 21 | I163: 22.52 | J163: 22.74 | K163: 22.24 | L163: 2.89 | M163: =F163*K163+表2[[#This Row],[合计暂定数量]]*表2[[#This Row],[税率（13%）]] -> 251.27 | N163: 18.07 | O163: 18.07 | P163: 2.35 | Q163: =F163*O163+表2[[#This Row],[合计暂定数量]]*表2[[#This Row],[税率（13%）]] -> 209.61 | R163: 18.07 | S163: (4.17)
A164: 162 | B164: UPVC带法兰接头 | C164: 五金材料 | D164: 联塑/日丰/南亚 | E164: dn50,PN16 | F164: 10 | G164: 只 | H164: 25 | I164: 26.62 | J164: 26.87 | K164: 26.28 | L164: 3.42 | M164: =F164*K164+表2[[#This Row],[合计暂定数量]]*表2[[#This Row],[税率（13%）]] -> 296.96 | N164: 19.88 | O164: 19.88 | P164: 2.58 | Q164: =F164*O164+表2[[#This Row],[合计暂定数量]]*表2[[#This Row],[税率（13%）]] -> 232.96 | R164: 19.88 | S164: (6.40)
A165: 163 | B165: UPVC带法兰接头 | C165: 五金材料 | D165: 联塑/日丰/南亚 | E165: dn63,PN16 | F165: 10 | G165: 只 | H165: 29 | I165: 30.71 | J165: 31.01 | K165: 30.32 | L165: 3.94 | M165: =F165*K165+表2[[#This Row],[合计暂定数量]]*表2[[#This Row],[税率（13%）]] -> 342.64 | N165: 25.30 | O165: 25.30 | P165: 3.29 | Q165: =F165*O165+表2[[#This Row],[合计暂定数量]]*表2[[#This Row],[税率（13%）]] -> 292.42 | R165: 25.30 | S165: (5.02)
A166: 164 | B166: UPVC带法兰接头 | C166: 五金材料 | D166: 联塑/日丰/南亚 | E166: dn75,PN16 | F166: 10 | G166: 只 | H166: 32 | I166: 33.78 | J166: 34.11 | K166: 33.35 | L166: 4.34 | M166: =F166*K166+表2[[#This Row],[合计暂定数量]]*表2[[#This Row],[税率（13%）]] -> 376.91 | N166: 29.81 | O166: 29.81 | P166: 3.88 | Q166: =F166*O166+表2[[#This Row],[合计暂定数量]]*表2[[#This Row],[税率（13%）]] -> 341.46 | R166: 29.81 | S166: (3.54)
A167: 165 | B167: UPVC带法兰接头 | C167: 五金材料 | D167: 联塑/日丰/南亚 | E167: dn90,PN16 | F167: 10 | G167: 只 | H167: 42 | I167: 44.02 | J167: 44.44 | K167: 43.46 | L167: 5.65 | M167: =F167*K167+表2[[#This Row],[合计暂定数量]]*表2[[#This Row],[税率（13%）]] -> 491.12 | N167: 38.85 | O167: =IF(K167>N167,N167,K167) -> 38.85 | P167: 5.05 | Q167: =F167*O167+表2[[#This Row],[合计暂定数量]]*表2[[#This Row],[税率（13%）]] -> 445.00 | R167: 38.85 | S167: (4.61)
A168: =ROW()-2 -> 166 | B168: UPVC带法兰接头 | C168: 五金材料 | D168: 联塑/日丰/南亚 | E168: dn110,PN16 | F168: 10 | G168: 只 | H168: 59 | I168: 61.43 | J168: 62.01 | K168: 60.65 | L168: 7.88 | M168: =F168*K168+表2[[#This Row],[合计暂定数量]]*表2[[#This Row],[税率（13%）]] -> 685.29 | N168: 56.02 | O168: 56.02 | P168: 7.28 | Q168: =F168*O168+表2[[#This Row],[合计暂定数量]]*表2[[#This Row],[税率（13%）]] -> 639.04 | R168: 56.02 | S168: (4.63)
A169: 167 | B169: UPVC带法兰接头 | C169: 五金材料 | D169: 联塑/日丰/南亚 | E169: dn125,PN16 | F169: 10 | G169: 只 | H169: 78 | I169: 81.90 | J169: 82.68 | K169: 80.86 | L169: 10.51 | M169: =F169*K169+表2[[#This Row],[合计暂定数量]]*表2[[#This Row],[税率（13%）]] -> 913.72 | N169: 71.38 | O169: 71.38 | P169: 9.28 | Q169: =F169*O169+表2[[#This Row],[合计暂定数量]]*表2[[#This Row],[税率（13%）]] -> 818.92 | R169: 71.38 | S169: (9.48)
A170: 168 | B170: UPVC带法兰接头 | C170: 五金材料 | D170: 联塑/日丰/南亚 | E170: dn140,PN16 | F170: 10 | G170: 只 | H170: 102 | I170: 107.49 | J170: 108.52 | K170: 106.13 | L170: 13.80 | M170: =F170*K170+表2[[#This Row],[合计暂定数量]]*表2[[#This Row],[税率（13%）]] -> 1199.25 | N170: 92.16 | O170: 92.16 | P170: 11.98 | Q170: =F170*O170+表2[[#This Row],[合计暂定数量]]*表2[[#This Row],[税率（13%）]] -> 1059.57 | R170: 92.16 | S170: (13.97)
A171: 169 | B171: UPVC带法兰接头 | C171: 五金材料 | D171: 联塑/日丰/南亚 | E171: dn160,PN16 | F171: 10 | G171: 只 | H171: 132 | I171: 138.21 | J171: 139.52 | K171: 136.45 | L171: 17.74 | M171: =F171*K171+表2[[#This Row],[合计暂定数量]]*表2[[#This Row],[税率（13%）]] -> 1541.90 | N171: 121.97 | O171: 121.97 | P171: 15.86 | Q171: =F171*O171+表2[[#This Row],[合计暂定数量]]*表2[[#This Row],[税率（13%）]] -> 1397.09 | R171: 121.97 | S171: (14.48)
A172: 170 | B172: UPVC带法兰接头 | C172: 五金材料 | D172: 联塑/日丰/南亚 | E172: dn200,PN16 | F172: 10 | G172: 只 | H172: 156 | I172: 163.80 | J172: 165.36 | K172: 161.72 | L172: 21.02 | M172: =F172*K172+表2[[#This Row],[合计暂定数量]]*表2[[#This Row],[税率（13%）]] -> 1827.44 | N172: 146.37 | O172: 146.37 | P172: 19.03 | Q172: =F172*O172+表2[[#This Row],[合计暂定数量]]*表2[[#This Row],[税率（13%）]] -> 1673.94 | R172: 146.37 | S172: (15.35)
A173: 171 | B173: UPVC活接 | C173: 五金材料 | D173: 联塑/日丰/南亚 | E173: dn20,PN16 | F173: 20 | G173: 只 | H173: 3 | I173: 3.07 | J173: 3.10 | K173: 3.03 | L173: 0.39 | M173: =F173*K173+表2[[#This Row],[合计暂定数量]]*表2[[#This Row],[税率（13%）]] -> 68.53 | N173: 3.61 | O173: 3.03 | P173: 0.39 | Q173: =F173*O173+表2[[#This Row],[合计暂定数量]]*表2[[#This Row],[税率（13%）]] -> 68.53 | R173: 0.00 | S173: 0.58
A174: 172 | B174: UPVC活接 | C174: 五金材料 | D174: 联塑/日丰/南亚 | E174: dn25,PN16 | F174: 20 | G174: 只 | H174: 5 | I174: 5.12 | J174: 5.17 | K174: 5.05 | L174: 0.66 | M174: =F174*K174+表2[[#This Row],[合计暂定数量]]*表2[[#This Row],[税率（13%）]] -> 114.21 | N174: 4.51 | O174: 4.51 | P174: 0.59 | Q174: =F174*O174+表2[[#This Row],[合计暂定数量]]*表2[[#This Row],[税率（13%）]] -> 103.34 | R174: 4.51 | S174: (0.54)
A175: 173 | B175: UPVC活接 | C175: 五金材料 | D175: 联塑/日丰/南亚 | E175: dn32,PN16 | F175: 20 | G175: 只 | H175: 8 | I175: 8.19 | J175: 8.27 | K175: 8.09 | L175: 1.05 | M175: =F175*K175+表2[[#This Row],[合计暂定数量]]*表2[[#This Row],[税率（13%）]] -> 182.74 | N175: 7.23 | O175: 7.23 | P175: 0.94 | Q175: =F175*O175+表2[[#This Row],[合计暂定数量]]*表2[[#This Row],[税率（13%）]] -> 165.62 | R175: 7.23 | S175: (0.86)
A176: 174 | B176: UPVC活接 | C176: 五金材料 | D176: 联塑/日丰/南亚 | E176: dn40,PN16 | F176: 20 | G176: 只 | H176: 12 | I176: 12.29 | J176: 12.40 | K176: 12.13 | L176: 1.58 | M176: =F176*K176+表2[[#This Row],[合计暂定数量]]*表2[[#This Row],[税率（13%）]] -> 274.12 | N176: 10.84 | O176: 10.84 | P176: 1.41 | Q176: =F176*O176+表2[[#This Row],[合计暂定数量]]*表2[[#This Row],[税率（13%）]] -> 248.34 | R176: 10.84 | S176: (1.29)
A177: 175 | B177: UPVC活接 | C177: 五金材料 | D177: 联塑/日丰/南亚 | E177: dn50,PN16 | F177: 20 | G177: 只 | H177: 18 | I177: 20.00 | J177: 18.60 | K177: 18.72 | L177: 2.43 | M177: =F177*K177+表2[[#This Row],[合计暂定数量]]*表2[[#This Row],[税率（13%）]] -> 423.02 | N177: 14.46 | O177: 14.46 | P177: 1.88 | Q177: =F177*O177+表2[[#This Row],[合计暂定数量]]*表2[[#This Row],[税率（13%）]] -> 337.87 | R177: 14.46 | S177: (4.26)
A178: =ROW()-2 -> 176 | B178: UPVC活接 | C178: 五金材料 | D178: 联塑/日丰/南亚 | E178: dn63,PN16 | F178: 20 | G178: 只 | H178: 32 | I178: 33.78 | J178: 34.11 | K178: 33.35 | L178: 4.34 | M178: =F178*K178+表2[[#This Row],[合计暂定数量]]*表2[[#This Row],[税率（13%）]] -> 753.82 | N178: 32.53 | O178: 32.53 | P178: 4.23 | Q178: =F178*O178+表2[[#This Row],[合计暂定数量]]*表2[[#This Row],[税率（13%）]] -> 737.32 | R178: 32.53 | S178: (0.82)
A179: 177 | B179: UPVC活接 | C179: 五金材料 | D179: 联塑/日丰/南亚 | E179: dn75,PN16 | F179: 20 | G179: 只 | H179: 44 | I179: 46.07 | J179: 46.51 | K179: 45.48 | L179: 5.91 | M179: =F179*K179+表2[[#This Row],[合计暂定数量]]*表2[[#This Row],[税率（13%）]] -> 1027.93 | N179: 42.46 | O179: 42.46 | P179: 5.52 | Q179: =F179*O179+表2[[#This Row],[合计暂定数量]]*表2[[#This Row],[税率（13%）]] -> 967.46 | R179: 42.46 | S179: (3.02)
A180: 178 | B180: UPVC活接 | C180: 五金材料 | D180: 联塑/日丰/南亚 | E180: dn90,PN16 | F180: 20 | G180: 只 | H180: 63 | I180: 66.54 | J180: 67.18 | K180: 65.70 | L180: 8.54 | M180: =F180*K180+表2[[#This Row],[合计暂定数量]]*表2[[#This Row],[税率（13%）]] -> 1484.79 | N180: 71.38 | O180: 65.70 | P180: 8.54 | Q180: =F180*O180+表2[[#This Row],[合计暂定数量]]*表2[[#This Row],[税率（13%）]] -> 1484.79 | R180: 0.00 | S180: 5.68
A181: 179 | B181: UPVC活接 | C181: 五金材料 | D181: 联塑/日丰/南亚 | E181: dn110,PN16 | F181: 20 | G181: 只 | H181: 78 | I181: 81.90 | J181: 82.68 | K181: 80.86 | L181: 10.51 | M181: =F181*K181+表2[[#This Row],[合计暂定数量]]*表2[[#This Row],[税率（13%）]] -> 1827.44 | N181: 94.87 | O181: 80.86 | P181: 10.51 | Q181: =F181*O181+表2[[#This Row],[合计暂定数量]]*表2[[#This Row],[税率（13%）]] -> 1827.44 | R181: 0.00 | S181: 14.01
A182: 180 | B182: UPVC活接 | C182: 五金材料 | D182: 联塑/日丰/南亚 | E182: dn125,PN16 | F182: 20 | G182: 只 | H182: 83 | I182: 87.02 | J182: 87.85 | K182: 85.91 | L182: 11.17 | M182: =F182*K182+表2[[#This Row],[合计暂定数量]]*表2[[#This Row],[税率（13%）]] -> 1941.65 | N182: 92.16 | O182: 85.91 | P182: 11.17 | Q182: =F182*O182+表2[[#This Row],[合计暂定数量]]*表2[[#This Row],[税率（13%）]] -> 1941.65 | R182: 0.00 | S182: 6.25
A183: 181 | B183: UPVC补芯 | C183: 五金材料 | D183: 联塑/日丰/南亚 | E183: dn25转dn20 | F183: 20 | G183: 只 | H183: 1 | I183: 1.02 | J183: 1.03 | K183: 1.01 | L183: 0.13 | M183: =F183*K183+表2[[#This Row],[合计暂定数量]]*表2[[#This Row],[税率（13%）]] -> 22.84 | N183: 0.90 | O183: 0.90 | P183: 0.12 | Q183: =F183*O183+表2[[#This Row],[合计暂定数量]]*表2[[#This Row],[税率（13%）]] -> 20.63 | R183: 0.90 | S183: (0.11)
A184: 182 | B184: UPVC补芯 | C184: 五金材料 | D184: 联塑/日丰/南亚 | E184: dn32转dn25 | F184: 20 | G184: 只 | H184: 1 | I184: 1.02 | J184: 1.03 | K184: 1.01 | L184: 0.13 | M184: =F184*K184+表2[[#This Row],[合计暂定数量]]*表2[[#This Row],[税率（13%）]] -> 22.84 | N184: 0.90 | O184: 0.90 | P184: 0.12 | Q184: =F184*O184+表2[[#This Row],[合计暂定数量]]*表2[[#This Row],[税率（13%）]] -> 20.63 | R184: 0.90 | S184: (0.11)
A185: 183 | B185: UPVC补芯 | C185: 五金材料 | D185: 联塑/日丰/南亚 | E185: dn40转dn32 | F185: 20 | G185: 只 | H185: 2 | I185: 2.05 | J185: 2.07 | K185: 2.02 | L185: 0.26 | M185: =F185*K185+表2[[#This Row],[合计暂定数量]]*表2[[#This Row],[税率（13%）]] -> 45.69 | N185: 1.81 | O185: 1.81 | P185: 0.24 | Q185: =F185*O185+表2[[#This Row],[合计暂定数量]]*表2[[#This Row],[税率（13%）]] -> 41.46 | R185: 1.81 | S185: (0.21)
A186: 184 | B186: UPVC补芯 | C186: 五金材料 | D186: 联塑/日丰/南亚 | E186: dn50转dn40 | F186: 20 | G186: 只 | H186: 2 | I186: 2.05 | J186: 2.07 | K186: 2.02 | L186: 0.26 | M186: =F186*K186+表2[[#This Row],[合计暂定数量]]*表2[[#This Row],[税率（13%）]] -> 45.69 | N186: 1.81 | O186: 1.81 | P186: 0.24 | Q186: =F186*O186+表2[[#This Row],[合计暂定数量]]*表2[[#This Row],[税率（13%）]] -> 41.46 | R186: 1.81 | S186: (0.21)
A187: 185 | B187: UPVC补芯 | C187: 五金材料 | D187: 联塑/日丰/南亚 | E187: dn63转dn50 | F187: 20 | G187: 只 | H187: 5 | I187: 5.12 | J187: 5.17 | K187: 5.05 | L187: 0.66 | M187: =F187*K187+表2[[#This Row],[合计暂定数量]]*表2[[#This Row],[税率（13%）]] -> 114.21 | N187: 4.51 | O187: 4.51 | P187: 0.59 | Q187: =F187*O187+表2[[#This Row],[合计暂定数量]]*表2[[#This Row],[税率（13%）]] -> 103.34 | R187: 4.51 | S187: (0.54)
A188: =ROW()-2 -> 186 | B188: UPVC补芯 | C188: 五金材料 | D188: 联塑/日丰/南亚 | E188: dn75转dn63 | F188: 20 | G188: 只 | H188: 6 | I188: 6.14 | J188: 6.20 | K188: 6.06 | L188: 0.79 | M188: =F188*K188+表2[[#This Row],[合计暂定数量]]*表2[[#This Row],[税率（13%）]] -> 137.06 | N188: 5.42 | O188: 5.42 | P188: 0.70 | Q188: =F188*O188+表2[[#This Row],[合计暂定数量]]*表2[[#This Row],[税率（13%）]] -> 124.17 | R188: 5.42 | S188: (0.64)
A189: 187 | B189: UPVC补芯 | C189: 五金材料 | D189: 联塑/日丰/南亚 | E189: dn90转dn75 | F189: 20 | G189: 只 | H189: 10 | I189: 10.24 | J189: 10.34 | K189: 10.11 | L189: 1.31 | M189: =F189*K189+表2[[#This Row],[合计暂定数量]]*表2[[#This Row],[税率（13%）]] -> 228.43 | N189: 9.94 | O189: 9.94 | P189: 1.29 | Q189: =F189*O189+表2[[#This Row],[合计暂定数量]]*表2[[#This Row],[税率（13%）]] -> 225.08 | R189: 9.94 | S189: (0.17)
A190: 188 | B190: UPVC补芯 | C190: 五金材料 | D190: 联塑/日丰/南亚 | E190: dn110转dn90 | F190: 20 | G190: 只 | H190: 15 | I190: 17.00 | J190: 15.50 | K190: 15.71 | L190: 2.04 | M190: =F190*K190+表2[[#This Row],[合计暂定数量]]*表2[[#This Row],[税率（13%）]] -> 355.03 | N190: 16.26 | O190: 15.71 | P190: 2.04 | Q190: =F190*O190+表2[[#This Row],[合计暂定数量]]*表2[[#This Row],[税率（13%）]] -> 355.03 | R190: 0.00 | S190: 0.55
A191: 189 | B191: UPVC补芯 | C191: 五金材料 | D191: 联塑/日丰/南亚 | E191: dn125转dn110 | F191: 20 | G191: 只 | H191: 29 | I191: 30.71 | J191: 31.01 | K191: 30.32 | L191: 3.94 | M191: =F191*K191+表2[[#This Row],[合计暂定数量]]*表2[[#This Row],[税率（13%）]] -> 685.29 | N191: 27.11 | O191: 27.11 | P191: 3.52 | Q191: =F191*O191+表2[[#This Row],[合计暂定数量]]*表2[[#This Row],[税率（13%）]] -> 621.04 | R191: 27.11 | S191: (3.21)
A192: 190 | B192: UPVC补芯 | C192: 五金材料 | D192: 联塑/日丰/南亚 | E192: dn140转dn125 | F192: 20 | G192: 只 | H192: 39 | I192: 40.95 | J192: 41.34 | K192: 40.43 | L192: 5.26 | M192: =F192*K192+表2[[#This Row],[合计暂定数量]]*表2[[#This Row],[税率（13%）]] -> 913.72 | N192: 40.66 | O192: 40.43 | P192: 5.26 | Q192: =F192*O192+表2[[#This Row],[合计暂定数量]]*表2[[#This Row],[税率（13%）]] -> 913.72 | R192: 0.00 | S192: 0.23
A193: 191 | B193: UPVC补芯 | C193: 五金材料 | D193: 联塑/日丰/南亚 | E193: dn160转dn140 | F193: 20 | G193: 只 | H193: 44 | I193: 46.07 | J193: 46.51 | K193: 45.48 | L193: 5.91 | M193: =F193*K193+表2[[#This Row],[合计暂定数量]]*表2[[#This Row],[税率（13%）]] -> 1027.93 | N193: 46.98 | O193: 45.48 | P193: 5.91 | Q193: =F193*O193+表2[[#This Row],[合计暂定数量]]*表2[[#This Row],[税率（13%）]] -> 1027.93 | R193: 0.00 | S193: 1.50
A194: 192 | B194: UPVC管帽 | C194: 五金材料 | D194: 联塑/日丰/南亚 | E194: dn20 | F194: 20 | G194: 只 | H194: 1 | I194: 1.54 | J194: 1.55 | K194: 1.52 | L194: 0.20 | M194: =F194*K194+表2[[#This Row],[合计暂定数量]]*表2[[#This Row],[税率（13%）]] -> 34.26 | N194: 1.81 | O194: 1.52 | P194: 0.20 | Q194: =F194*O194+表2[[#This Row],[合计暂定数量]]*表2[[#This Row],[税率（13%）]] -> 34.26 | R194: 0.00 | S194: 0.29
A195: 193 | B195: UPVC管帽 | C195: 五金材料 | D195: 联塑/日丰/南亚 | E195: dn25 | F195: 20 | G195: 只 | H195: 2 | I195: 2.05 | J195: 2.07 | K195: 2.02 | L195: 0.26 | M195: =F195*K195+表2[[#This Row],[合计暂定数量]]*表2[[#This Row],[税率（13%）]] -> 45.69 | N195: 1.81 | O195: 1.81 | P195: 0.24 | Q195: =F195*O195+表2[[#This Row],[合计暂定数量]]*表2[[#This Row],[税率（13%）]] -> 41.46 | R195: 1.81 | S195: (0.21)
A196: 194 | B196: UPVC管帽 | C196: 五金材料 | D196: 联塑/日丰/南亚 | E196: dn32 | F196: 20 | G196: 只 | H196: 2 | I196: 2.56 | J196: 2.58 | K196: 2.53 | L196: =K196*0.13 -> 0.33 | M196: =F196*K196+表2[[#This Row],[合计暂定数量]]*表2[[#This Row],[税率（13%）]] -> 57.11 | N196: 1.81 | O196: 1.81 | P196: =O196*0.13 -> 0.24 | Q196: =F196*O196+表2[[#This Row],[合计暂定数量]]*表2[[#This Row],[税率（13%）]] -> 42.77 | R196: =IF(K196>N196,N196,0) -> 1.81 | S196: =N196-K196 -> (0.72)
A197: 195 | B197: UPVC管帽 | C197: 五金材料 | D197: 联塑/日丰/南亚 | E197: dn40 | F197: 20 | G197: 只 | H197: 3 | I197: 3.07 | J197: 3.10 | K197: 3.03 | L197: 0.39 | M197: =F197*K197+表2[[#This Row],[合计暂定数量]]*表2[[#This Row],[税率（13%）]] -> 68.53 | N197: 1.81 | O197: 1.81 | P197: 0.24 | Q197: =F197*O197+表2[[#This Row],[合计暂定数量]]*表2[[#This Row],[税率（13%）]] -> 44.08 | R197: 1.81 | S197: (1.22)
A198: =ROW()-2 -> 196 | B198: UPVC管帽 | C198: 五金材料 | D198: 联塑/日丰/南亚 | E198: dn50 | F198: 20 | G198: 只 | H198: 3 | I198: 3.58 | J198: 3.62 | K198: 3.54 | L198: 0.46 | M198: =F198*K198+表2[[#This Row],[合计暂定数量]]*表2[[#This Row],[税率（13%）]] -> 79.95 | N198: 2.71 | O198: 2.71 | P198: 0.35 | Q198: =F198*O198+表2[[#This Row],[合计暂定数量]]*表2[[#This Row],[税率（13%）]] -> 63.40 | R198: 2.71 | S198: (0.83)
A199: 197 | B199: UPVC管帽 | C199: 五金材料 | D199: 联塑/日丰/南亚 | E199: dn63 | F199: 20 | G199: 只 | H199: 5 | I199: 5.12 | J199: 5.17 | K199: 5.05 | L199: 0.66 | M199: =F199*K199+表2[[#This Row],[合计暂定数量]]*表2[[#This Row],[税率（13%）]] -> 114.21 | N199: 4.51 | O199: =IF(K199>N199,N199,K199) -> 4.51 | P199: 0.59 | Q199: =F199*O199+表2[[#This Row],[合计暂定数量]]*表2[[#This Row],[税率（13%）]] -> 103.34 | R199: 4.51 | S199: (0.54)
A200: 198 | B200: UPVC管帽 | C200: 五金材料 | D200: 联塑/日丰/南亚 | E200: dn75 | F200: 20 | G200: 只 | H200: 9 | I200: 9.21 | J200: 9.30 | K200: 9.10 | L200: 1.18 | M200: =F200*K200+表2[[#This Row],[合计暂定数量]]*表2[[#This Row],[税率（13%）]] -> 205.59 | N200: 8.13 | O200: 8.13 | P200: 1.06 | Q200: =F200*O200+表2[[#This Row],[合计暂定数量]]*表2[[#This Row],[税率（13%）]] -> 186.25 | R200: 8.13 | S200: (0.97)
A201: 199 | B201: UPVC管帽 | C201: 五金材料 | D201: 联塑/日丰/南亚 | E201: dn90 | F201: 20 | G201: 只 | H201: 15 | I201: 17.00 | J201: 15.50 | K201: 15.71 | L201: 2.04 | M201: =F201*K201+表2[[#This Row],[合计暂定数量]]*表2[[#This Row],[税率（13%）]] -> 355.03 | N201: 12.65 | O201: 12.65 | P201: 1.64 | Q201: =F201*O201+表2[[#This Row],[合计暂定数量]]*表2[[#This Row],[税率（13%）]] -> 293.84 | R201: 12.65 | S201: (3.06)
... 626 more rows

Sheet 采购清单及预算表
A1: 东莞市众源环境投资有限公司2025-2026年五金材料及工器具采购清单及预算表
A2: 序号 | B2: 物资名称 | C2: 物资类别 | D2: 推荐品牌 | E2: 规格型号 | F2: 单位 | G2: 暂定数量 | H2: 不含税预算综合单价（元） | I2: 不含税预算小计（元）
A3: 1 | B3: 槽钢 | C3: 五金材料 | D3: 任意品牌 | E3: 碳钢材质，国标尺寸 | F3: 100 | G3: 公斤 | H3: 3.30 | I3: =H3*F3 -> 330.00
A4: 2 | B4: 角钢 | C4: 五金材料 | D4: 任意品牌 | E4: 碳钢材质，国标尺寸 | F4: 100 | G4: 公斤 | H4: 3.37 | I4: =H4*F4 -> 337.00
A5: 3 | B5: 方通 | C5: 五金材料 | D5: 任意品牌 | E5: 碳钢材质，国标尺寸 | F5: 100 | G5: 公斤 | H5: 3.65 | I5: 365.00
A6: 4 | B6: 钢板 | C6: 五金材料 | D6: 任意品牌 | E6: 碳钢材质，国标尺寸 | F6: 100 | G6: 公斤 | H6: 3.45 | I6: 345.00
A7: 5 | B7: 304不锈钢方通 | C7: 五金材料 | D7: 任意品牌 | E7: 国标尺寸 | F7: 100 | G7: 公斤 | H7: 33.33 | I7: 3,333.00
A8: 6 | B8: 304不锈钢格网 | C8: 五金材料 | D8: 任意品牌 | E8: 国标尺寸 | F8: 100 | G8: 公斤 | H8: 33.33 | I8: 3,333.00
A9: 7 | B9: 304不锈钢链条 | C9: 五金材料 | D9: 任意品牌 | E9: 国标尺寸 | F9: 100 | G9: 公斤 | H9: 33.33 | I9: 3,333.00
A10: 8 | B10: 304不锈钢薄板 | C10: 五金材料 | D10: 任意品牌 | E10: 1220×2440mm,0.8mm厚 | F10: 5 | G10: 张 | H10: 297.41 | I10: 1,487.05
A11: 9 | B11: 304不锈钢薄板 | C11: 五金材料 | D11: 任意品牌 | E11: 1220×2440mm,1.0mm厚 | F11: 5 | G11: 张 | H11: 367.87 | I11: 1,839.35
A12: 10 | B12: 304不锈钢薄板 | C12: 五金材料 | D12: 任意品牌 | E12: 1220×2440mm,1.2mm厚 | F12: 5 | G12: 张 | H12: 414.91 | I12: 2,074.55
A13: 11 | B13: 镀锌方通 | C13: 五金材料 | D13: 任意品牌 | E13: 碳钢镀锌，国标尺寸 | F13: 100 | G13: 公斤 | H13: 4.55 | I13: 455.00
A14: 12 | B14: 镀锌钢管 | C14: 五金材料 | D14: 任意品牌 | E14: 碳钢镀锌，国标尺寸 | F14: 100 | G14: 公斤 | H14: 4.55 | I14: 455.00
A15: 13 | B15: 镀锌格栅板 | C15: 五金材料 | D15: 任意品牌 | E15: 碳钢镀锌，国标尺寸 | F15: 100 | G15: 公斤 | H15: 20.02 | I15: 2,002.00
A16: 14 | B16: 镀锌链条 | C16: 五金材料 | D16: 任意品牌 | E16: 碳钢镀锌，国标尺寸 | F16: 50 | G16: 公斤 | H16: 17.64 | I16: 882.00
A17: 15 | B17: 镀锌板 | C17: 五金材料 | D17: 任意品牌 | E17: 1220×2440mm,1.0mm厚 | F17: 5 | G17: 张 | H17: 94.34 | I17: 471.70
A18: 16 | B18: 镀锌板 | C18: 五金材料 | D18: 任意品牌 | E18: 1220×2440mm,2.0mm厚 | F18: 5 | G18: 张 | H18: 186.88 | I18: 934.40
A19: 17 | B19: 304不锈钢管件 | C19: 五金材料 | D19: 任意品牌 | E19: 国标尺寸 | F19: 100 | G19: 公斤 | H19: 91.44 | I19: 9,144.00
A20: 18 | B20: 碳钢焊接法兰 | C20: 五金材料 | D20: 任意品牌 | E20: DN25，PN16 | F20: 5 | G20: 片 | H20: 15.88 | I20: 79.40
A21: 19 | B21: 碳钢焊接法兰 | C21: 五金材料 | D21: 任意品牌 | E21: DN32，PN16 | F21: 5 | G21: 片 | H21: 18.81 | I21: 94.05
A22: 20 | B22: 碳钢焊接法兰 | C22: 五金材料 | D22: 任意品牌 | E22: DN40，PN16 | F22: 5 | G22: 片 | H22: 22.60 | I22: 113.00
A23: 21 | B23: 碳钢焊接法兰 | C23: 五金材料 | D23: 任意品牌 | E23: DN50，PN16 | F23: 5 | G23: 片 | H23: 28.87 | I23: 144.35
A24: 22 | B24: 碳钢焊接法兰 | C24: 五金材料 | D24: 任意品牌 | E24: DN65，PN16 | F24: 5 | G24: 片 | H24: 32.41 | I24: 162.05
A25: 23 | B25: 碳钢焊接法兰 | C25: 五金材料 | D25: 任意品牌 | E25: DN100，PN16 | F25: 5 | G25: 片 | H25: 48.27 | I25: 241.35
A26: 24 | B26: 304不锈钢焊接法兰 | C26: 五金材料 | D26: 任意品牌 | E26: DN25，PN16 | F26: 5 | G26: 片 | H26: 37.20 | I26: 186.00
A27: 25 | B27: 304不锈钢焊接法兰 | C27: 五金材料 | D27: 任意品牌 | E27: DN32，PN16 | F27: 5 | G27: 片 | H27: 51.00 | I27: 255.00
A28: 26 | B28: 304不锈钢焊接法兰 | C28: 五金材料 | D28: 任意品牌 | E28: DN40，PN16 | F28: 3 | G28: 片 | H28: 59.61 | I28: 178.83
A29: 27 | B29: 304不锈钢焊接法兰 | C29: 五金材料 | D29: 任意品牌 | E29: DN50，PN16 | F29: 3 | G29: 片 | H29: 73.98 | I29: 221.94
A30: 28 | B30: 304不锈钢焊接法兰 | C30: 五金材料 | D30: 任意品牌 | E30: DN65，PN16 | F30: 3 | G30: 片 | H30: 97.33 | I30: 291.99
A31: 29 | B31: 304不锈钢法兰盲板 | C31: 五金材料 | D31: 任意品牌 | E31: DN50，PN16 | F31: 4 | G31: 片 | H31: 106.15 | I31: 424.60
A32: 30 | B32: 304不锈钢法兰盲板 | C32: 五金材料 | D32: 任意品牌 | E32: DN65，PN16 | F32: 4 | G32: 片 | H32: 136.30 | I32: 545.20
A33: 31 | B33: 304不锈钢法兰盲板 | C33: 五金材料 | D33: 任意品牌 | E33: DN100，PN16 | F33: 5 | G33: 片 | H33: 207.27 | I33: 1,036.35
A34: 32 | B34: 304不锈钢波纹伸缩接头 | C34: 五金材料 | D34: 任意品牌 | E34: DN100，PN10，耐酸碱、高温 | F34: 3 | G34: 只 | H34: 419.80 | I34: 1,259.40
A35: 33 | B35: 304不锈钢波纹伸缩接头 | C35: 五金材料 | D35: 任意品牌 | E35: DN125，PN10，耐酸碱、高温 | F35: 3 | G35: 只 | H35: 531.12 | I35: 1,593.36
A36: 34 | B36: 304不锈钢波纹伸缩接头 | C36: 五金材料 | D36: 任意品牌 | E36: DN150，PN10，耐酸碱、高温 | F36: 3 | G36: 只 | H36: 661.53 | I36: 1,984.59
A37: 35 | B37: 304不锈钢波纹伸缩接头 | C37: 五金材料 | D37: 任意品牌 | E37: DN200，PN10，耐酸碱、高温 | F37: 3 | G37: 只 | H37: 834.04 | I37: 2,502.12
A38: 36 | B38: 304不锈钢波纹伸缩接头 | C38: 五金材料 | D38: 任意品牌 | E38: DN250，PN10，耐酸碱、高温 | F38: 3 | G38: 只 | H38: 1,416.06 | I38: 4,248.18
A39: 37 | B39: 304不锈钢法兰橡胶软接头 | C39: 五金材料 | D39: 任意品牌 | E39: DN150，PN25，耐酸碱、高温 | F39: 10 | G39: 只 | H39: 1,088.50 | I39: 10,885.00
A40: 38 | B40: 304不锈钢法兰橡胶软接头 | C40: 五金材料 | D40: 任意品牌 | E40: DN125，PN25，耐酸碱、高温 | F40: 10 | G40: 只 | H40: 943.37 | I40: 9,433.70
A41: 39 | B41: 304不锈钢法兰橡胶软接头 | C41: 五金材料 | D41: 任意品牌 | E41: DN100，PN25，耐酸碱、高温 | F41: 10 | G41: 只 | H41: 725.67 | I41: 7,256.70
A42: 40 | B42: 304不锈钢法兰橡胶软接头 | C42: 五金材料 | D42: 任意品牌 | E42: DN100，PN16，耐酸碱、高温 | F42: 10 | G42: 只 | H42: 396.73 | I42: 3,967.30
A43: 41 | B43: 304不锈钢法兰橡胶软接头 | C43: 五金材料 | D43: 任意品牌 | E43: DN80，PN25，耐酸碱、高温 | F43: 5 | G43: 只 | H43: 253.98 | I43: 1,269.90
A44: 42 | B44: 304不锈钢法兰橡胶软接头 | C44: 五金材料 | D44: 任意品牌 | E44: DN50，PN16，耐酸碱、高温 | F44: 5 | G44: 只 | H44: 159.65 | I44: 798.25
A45: 43 | B45: 碳钢镀锌外六角螺栓 | C45: 五金材料 | D45: 任意品牌 | E45: 国标尺寸 | F45: 25 | G45: 公斤 | H45: 69.97 | I45: 1,749.25
A46: 44 | B46: 碳钢镀锌内六角螺栓 | C46: 五金材料 | D46: 任意品牌 | E46: 国标尺寸 | F46: 10 | G46: 公斤 | H46: 69.97 | I46: 699.70
A47: 45 | B47: 碳钢镀锌螺母 | C47: 五金材料 | D47: 任意品牌 | E47: 国标尺寸 | F47: 10 | G47: 公斤 | H47: 72.57 | I47: 725.70
A48: 46 | B48: 碳钢镀锌弹垫 | C48: 五金材料 | D48: 任意品牌 | E48: 国标尺寸 | F48: 10 | G48: 公斤 | H48: 5.18 | I48: 51.80
A49: 47 | B49: 碳钢镀锌平垫 | C49: 五金材料 | D49: 任意品牌 | E49: 国标尺寸 | F49: 10 | G49: 公斤 | H49: 72.57 | I49: 725.70
A50: 48 | B50: 304不锈钢外六角螺栓 | C50: 五金材料 | D50: 任意品牌 | E50: 国标尺寸 | F50: 40 | G50: 公斤 | H50: 105.75 | I50: 4,230.00
A51: 49 | B51: 304不锈钢内六角螺栓 | C51: 五金材料 | D51: 任意品牌 | E51: 国标尺寸 | F51: 40 | G51: 公斤 | H51: 105.75 | I51: 4,230.00
A52: 50 | B52: 304不锈钢螺母 | C52: 五金材料 | D52: 任意品牌 | E52: 国标尺寸 | F52: 20 | G52: 公斤 | H52: 124.40 | I52: 2,488.00
A53: 51 | B53: 304不锈钢弹垫 | C53: 五金材料 | D53: 任意品牌 | E53: 国标尺寸 | F53: 10 | G53: 公斤 | H53: 124.40 | I53: 1,244.00
A54: 52 | B54: 304不锈钢平垫 | C54: 五金材料 | D54: 任意品牌 | E54: 国标尺寸 | F54: 10 | G54: 公斤 | H54: 124.40 | I54: 1,244.00
A55: 53 | B55: 碳钢镀锌螺钉 | C55: 五金材料 | D55: 任意品牌 | E55: 国标尺寸 | F55: 10 | G55: 公斤 | H55: 73.18 | I55: 731.80
A56: 54 | B56: 碳钢镀锌膨胀螺栓 | C56: 五金材料 | D56: 任意品牌 | E56: 国标尺寸 | F56: 20 | G56: 公斤 | H56: 39.76 | I56: 795.20
A57: 55 | B57: 碳钢镀锌花篮螺栓 | C57: 五金材料 | D57: 任意品牌 | E57: 国标尺寸 | F57: 10 | G57: 公斤 | H57: 74.74 | I57: 747.40
A58: 56 | B58: 410不锈钢自钻螺钉 | C58: 五金材料 | D58: 任意品牌 | E58: 国标尺寸 | F58: 20 | G58: 公斤 | H58: 159.02 | I58: 3,180.40
A59: 57 | B59: 304不锈钢U型卸扣 | C59: 五金材料 | D59: 任意品牌 | E59: 国标尺寸 | F59: 15 | G59: 公斤 | H59: 124.40 | I59: 1,866.00
A60: 58 | B60: 304不锈钢钢丝绳锁扣 | C60: 五金材料 | D60: 任意品牌 | E60: 国标尺寸 | F60: 10 | G60: 公斤 | H60: 124.40 | I60: 1,244.00
A61: 59 | B61: 拉簧 | C61: 五金材料 | D61: 任意品牌 | E61: 1.2*12*60，碳钢 | F61: 30 | G61: 条 | H61: 1.45 | I61: 43.50
A62: 60 | B62: 铁丝 | C62: 五金材料 | D62: 任意品牌 | E62: 国标尺寸 | F62: 10 | G62: 公斤 | H62: 16.71 | I62: 167.10
A63: 61 | B63: 镀锌铁丝 | C63: 五金材料 | D63: 任意品牌 | E63: 国标尺寸 | F63: 10 | G63: 公斤 | H63: 19.08 | I63: 190.80
A64: 62 | B64: 不锈钢氩弧焊丝 | C64: 五金材料 | D64: 任意品牌 | E64: 国标尺寸 | F64: 3 | G64: 公斤 | H64: 44.53 | I64: 133.59
A65: 63 | B65: 304不锈钢喉箍 | C65: 五金材料 | D65: 任意品牌 | E65: 14-51mm | F65: 20 | G65: 个 | H65: 1.59 | I65: 31.80
A66: 64 | B66: 304不锈钢喉箍 | C66: 五金材料 | D66: 任意品牌 | E66: 46-95mm | F66: 20 | G66: 个 | H66: 1.59 | I66: 31.80
A67: 65 | B67: 304不锈钢喉箍 | C67: 五金材料 | D67: 任意品牌 | E67: 84-140mm | F67: 20 | G67: 个 | H67: 1.59 | I67: 31.80
A68: 66 | B68: 304不锈钢喉箍 | C68: 五金材料 | D68: 任意品牌 | E68: 130-178mm | F68: 20 | G68: 个 | H68: 2.38 | I68: =H68*F68 -> 47.60
A69: 67 | B69: 304不锈钢喉箍 | C69: 五金材料 | D69: 任意品牌 | E69: 160-245mm | F69: 20 | G69: 个 | H69: 3.18 | I69: 63.60
A70: 68 | B70: 铁管卡箍 | C70: 五金材料 | D70: 任意品牌 | E70: DN50 | F70: 10 | G70: 个 | H70: 6.80 | I70: 68.00
A71: 69 | B71: 铆钉 | C71: 五金材料 | D71: 任意品牌 | E71: M2.4×10，1000枚/盒 | F71: 2 | G71: 盒 | H71: 85.87 | I71: 171.74
A72: 70 | B72: 铆钉 | C72: 五金材料 | D72: 任意品牌 | E72: M3.2×20，1000枚/盒 | F72: 2 | G72: 盒 | H72: 94.15 | I72: 188.30
A73: 71 | B73: 铆钉 | C73: 五金材料 | D73: 任意品牌 | E73: M4×25，500枚/盒 | F73: 2 | G73: 盒 | H73: 87.46 | I73: 174.92
A74: 72 | B74: 绝缘橡胶垫 | C74: 五金材料 | D74: 任意品牌 | E74: 10KV，5mm厚，1米宽，绿色，防滑，5米/卷 | F74: 20 | G74: 卷 | H74: 228.98 | I74: 4,579.60
A75: 73 | B75: 石墨盘根 | C75: 五金材料 | D75: 任意品牌 | E75: 任意尺寸 | F75: 15 | G75: 公斤 | H75: 44.00 | I75: 660.00
A76: 74 | B76: 紫铜棒 | C76: 五金材料 | D76: 任意品牌 | E76: 任意尺寸 | F76: 15 | G76: 公斤 | H76: 103.36 | I76: 1,550.40
A77: 75 | B77: 紫铜板 | C77: 五金材料 | D77: 任意品牌 | E77: 任意尺寸 | F77: 10 | G77: 公斤 | H77: 110.92 | I77: 1,109.20
A78: 76 | B78: 304不锈钢钢丝绳 | C78: 五金材料 | D78: 任意品牌 | E78: 直径3mm | F78: 100 | G78: 米 | H78: 1.84 | I78: 184.00
A79: 77 | B79: 304不锈钢钢丝绳 | C79: 五金材料 | D79: 任意品牌 | E79: 直径5mm | F79: 100 | G79: 米 | H79: 4.84 | I79: 484.00
A80: 78 | B80: 304不锈钢钢丝绳 | C80: 五金材料 | D80: 任意品牌 | E80: 直径8mm | F80: 30 | G80: 米 | H80: 8.87 | I80: 266.10
A81: 79 | B81: UPVC给水管 | C81: 五金材料 | D81: 联塑/日丰/南亚 | E81: dn20,PN16 | F81: 50 | G81: 米 | H81: 1.98 | I81: 99.00
A82: 80 | B82: UPVC给水管 | C82: 五金材料 | D82: 联塑/日丰/南亚 | E82: dn25,PN16 | F82: 50 | G82: 米 | H82: 2.41 | I82: 120.50
A83: 81 | B83: UPVC给水管 | C83: 五金材料 | D83: 联塑/日丰/南亚 | E83: dn32,PN16 | F83: 50 | G83: 米 | H83: 3.71 | I83: 185.50
A84: 82 | B84: UPVC给水管 | C84: 五金材料 | D84: 联塑/日丰/南亚 | E84: dn40,PN16 | F84: 50 | G84: 米 | H84: 5.77 | I84: 288.50
A85: 83 | B85: UPVC给水管 | C85: 五金材料 | D85: 联塑/日丰/南亚 | E85: dn50,PN16 | F85: 50 | G85: 米 | H85: 8.73 | I85: 436.50
A86: 84 | B86: UPVC给水管 | C86: 五金材料 | D86: 联塑/日丰/南亚 | E86: dn63,PN16 | F86: 100 | G86: 米 | H86: 14.32 | I86: 1,432.00
A87: 85 | B87: UPVC给水管 | C87: 五金材料 | D87: 联塑/日丰/南亚 | E87: dn75,PN16 | F87: 200 | G87: 米 | H87: 19.20 | I87: 3,840.00
A88: 86 | B88: UPVC给水管 | C88: 五金材料 | D88: 联塑/日丰/南亚 | E88: dn90,PN16 | F88: 200 | G88: 米 | H88: 28.13 | I88: 5,626.00
A89: 87 | B89: UPVC给水管 | C89: 五金材料 | D89: 联塑/日丰/南亚 | E89: dn110,PN16 | F89: 150 | G89: 米 | H89: 35.41 | I89: 5,311.50
A90: 88 | B90: UPVC给水管 | C90: 五金材料 | D90: 联塑/日丰/南亚 | E90: dn125,PN16 | F90: 50 | G90: 米 | H90: 53.78 | I90: 2,689.00
A91: 89 | B91: UPVC给水管 | C91: 五金材料 | D91: 联塑/日丰/南亚 | E91: dn140,PN16 | F91: 50 | G91: 米 | H91: 70.36 | I91: 3,518.00
A92: 90 | B92: UPVC给水管 | C92: 五金材料 | D92: 联塑/日丰/南亚 | E92: dn160,PN16 | F92: 50 | G92: 米 | H92: 86.93 | I92: 4,346.50
A93: 91 | B93: UPVC给水管 | C93: 五金材料 | D93: 联塑/日丰/南亚 | E93: dn200,PN16 | F93: 50 | G93: 米 | H93: 140.16 | I93: 7,008.00
A94: 92 | B94: UPVC给水管直接 | C94: 五金材料 | D94: 联塑/日丰/南亚 | E94: dn20,PN16 | F94: 25 | G94: 只 | H94: 1.59 | I94: 39.75
A95: 93 | B95: UPVC给水管直接 | C95: 五金材料 | D95: 联塑/日丰/南亚 | E95: dn25,PN16 | F95: 25 | G95: 只 | H95: 1.59 | I95: 39.75
A96: 94 | B96: UPVC给水管直接 | C96: 五金材料 | D96: 联塑/日丰/南亚 | E96: dn32,PN16 | F96: 25 | G96: 只 | H96: 1.59 | I96: 39.75
A97: 95 | B97: UPVC给水管直接 | C97: 五金材料 | D97: 联塑/日丰/南亚 | E97: dn40,PN16 | F97: 25 | G97: 只 | H97: 2.38 | I97: 59.50
A98: 96 | B98: UPVC给水管直接 | C98: 五金材料 | D98: 联塑/日丰/南亚 | E98: dn50,PN16 | F98: 25 | G98: 只 | H98: 3.18 | I98: 79.50
A99: 97 | B99: UPVC给水管直接 | C99: 五金材料 | D99: 联塑/日丰/南亚 | E99: dn63,PN16 | F99: 25 | G99: 只 | H99: 3.97 | I99: 99.25
A100: 98 | B100: UPVC给水管直接 | C100: 五金材料 | D100: 联塑/日丰/南亚 | E100: dn75,PN16 | F100: 80 | G100: 只 | H100: 6.36 | I100: 508.80
A101: 99 | B101: UPVC给水管直接 | C101: 五金材料 | D101: 联塑/日丰/南亚 | E101: dn90,PN16 | F101: 80 | G101: 只 | H101: 9.54 | I101: 763.20
A102: 100 | B102: UPVC给水管直接 | C102: 五金材料 | D102: 联塑/日丰/南亚 | E102: dn110,PN16 | F102: 80 | G102: 只 | H102: 15.90 | I102: 1,272.00
A103: 101 | B103: UPVC给水管直接 | C103: 五金材料 | D103: 联塑/日丰/南亚 | E103: dn125,PN16 | F103: 25 | G103: 只 | H103: 26.23 | I103: 655.75
A104: 102 | B104: UPVC给水管直接 | C104: 五金材料 | D104: 联塑/日丰/南亚 | E104: dn140,PN16 | F104: 25 | G104: 只 | H104: 36.57 | I104: 914.25
A105: 103 | B105: UPVC给水管直接 | C105: 五金材料 | D105: 联塑/日丰/南亚 | E105: dn160,PN16 | F105: 25 | G105: 只 | H105: 44.53 | I105: 1,113.25
A106: 104 | B106: UPVC给水管直接 | C106: 五金材料 | D106: 联塑/日丰/南亚 | E106: dn200,PN16 | F106: 25 | G106: 只 | H106: 83.49 | I106: 2,087.25
A107: 105 | B107: UPVC给水管90°弯头 | C107: 五金材料 | D107: 联塑/日丰/南亚 | E107: dn20,PN16 | F107: 20 | G107: 只 | H107: 1.59 | I107: 31.80
A108: 106 | B108: UPVC给水管90°弯头 | C108: 五金材料 | D108: 联塑/日丰/南亚 | E108: dn25,PN16 | F108: 20 | G108: 只 | H108: 1.59 | I108: 31.80
A109: 107 | B109: UPVC给水管90°弯头 | C109: 五金材料 | D109: 联塑/日丰/南亚 | E109: dn32,PN16 | F109: 20 | G109: 只 | H109: 2.38 | I109: 47.60
A110: 108 | B110: UPVC给水管90°弯头 | C110: 五金材料 | D110: 联塑/日丰/南亚 | E110: dn40,PN16 | F110: 20 | G110: 只 | H110: 3.18 | I110: 63.60
A111: 109 | B111: UPVC给水管90°弯头 | C111: 五金材料 | D111: 联塑/日丰/南亚 | E111: dn50,PN16 | F111: 20 | G111: 只 | H111: 4.77 | I111: 95.40
A112: 110 | B112: UPVC给水管90°弯头 | C112: 五金材料 | D112: 联塑/日丰/南亚 | E112: dn63,PN16 | F112: 35 | G112: 只 | H112: 7.15 | I112: 250.25
A113: 111 | B113: UPVC给水管90°弯头 | C113: 五金材料 | D113: 联塑/日丰/南亚 | E113: dn75,PN16 | F113: 35 | G113: 只 | H113: 11.92 | I113: 417.20
A114: 112 | B114: UPVC给水管90°弯头 | C114: 五金材料 | D114: 联塑/日丰/南亚 | E114: dn90,PN16 | F114: 35 | G114: 只 | H114: 15.90 | I114: 556.50
A115: 113 | B115: UPVC给水管90°弯头 | C115: 五金材料 | D115: 联塑/日丰/南亚 | E115: dn110,PN16 | F115: 35 | G115: 只 | H115: 31.00 | I115: 1,085.00
A116: 114 | B116: UPVC给水管90°弯头 | C116: 五金材料 | D116: 联塑/日丰/南亚 | E116: dn125,PN16 | F116: 20 | G116: 只 | H116: 53.27 | I116: 1,065.40
A117: 115 | B117: UPVC给水管90°弯头 | C117: 五金材料 | D117: 联塑/日丰/南亚 | E117: dn140,PN16 | F117: 20 | G117: 只 | H117: 80.30 | I117: 1,606.00
A118: 116 | B118: UPVC给水管90°弯头 | C118: 五金材料 | D118: 联塑/日丰/南亚 | E118: dn160,PN16 | F118: 20 | G118: 只 | H118: 89.06 | I118: 1,781.20
A119: 117 | B119: UPVC给水管90°弯头 | C119: 五金材料 | D119: 联塑/日丰/南亚 | E119: dn200,PN16 | F119: 20 | G119: 只 | H119: 157.42 | I119: 3,148.40
A120: 118 | B120: UPVC给水管45°弯头 | C120: 五金材料 | D120: 联塑/日丰/南亚 | E120: dn20,PN16 | F120: 20 | G120: 只 | H120: 1.59 | I120: 31.80
A121: 119 | B121: UPVC给水管45°弯头 | C121: 五金材料 | D121: 联塑/日丰/南亚 | E121: dn25,PN16 | F121: 20 | G121: 只 | H121: 1.59 | I121: 31.80
A122: 120 | B122: UPVC给水管45°弯头 | C122: 五金材料 | D122: 联塑/日丰/南亚 | E122: dn32,PN16 | F122: 20 | G122: 只 | H122: 2.25 | I122: 45.00
A123: 121 | B123: UPVC给水管45°弯头 | C123: 五金材料 | D123: 联塑/日丰/南亚 | E123: dn40,PN16 | F123: 20 | G123: 只 | H123: 2.38 | I123: 47.60
A124: 122 | B124: UPVC给水管45°弯头 | C124: 五金材料 | D124: 联塑/日丰/南亚 | E124: dn50,PN16 | F124: 20 | G124: 只 | H124: 3.97 | I124: 79.40
A125: 123 | B125: UPVC给水管45°弯头 | C125: 五金材料 | D125: 联塑/日丰/南亚 | E125: dn63,PN16 | F125: 35 | G125: 只 | H125: 5.56 | I125: 194.60
A126: 124 | B126: UPVC给水管45°弯头 | C126: 五金材料 | D126: 联塑/日丰/南亚 | E126: dn75,PN16 | F126: 35 | G126: 只 | H126: 9.54 | I126: 333.90
A127: 125 | B127: UPVC给水管45°弯头 | C127: 五金材料 | D127: 联塑/日丰/南亚 | E127: dn90,PN16 | F127: 35 | G127: 只 | H127: 14.31 | I127: 500.85
A128: 126 | B128: UPVC给水管45°弯头 | C128: 五金材料 | D128: 联塑/日丰/南亚 | E128: dn110,PN16 | F128: 35 | G128: 只 | H128: 22.26 | I128: 779.10
A129: 127 | B129: UPVC给水管45°弯头 | C129: 五金材料 | D129: 联塑/日丰/南亚 | E129: dn125,PN16 | F129: 20 | G129: 只 | H129: 39.76 | I129: 795.20
A130: 128 | B130: UPVC给水管45°弯头 | C130: 五金材料 | D130: 联塑/日丰/南亚 | E130: dn140,PN16 | F130: 20 | G130: 只 | H130: 50.09 | I130: 1,001.80
A131: 129 | B131: UPVC给水管45°弯头 | C131: 五金材料 | D131: 联塑/日丰/南亚 | E131: dn160,PN16 | F131: 20 | G131: 只 | H131: 62.02 | I131: 1,240.40
A132: 130 | B132: UPVC给水管45°弯头 | C132: 五金材料 | D132: 联塑/日丰/南亚 | E132: dn200,PN16 | F132: 20 | G132: 只 | H132: 121.65 | I132: =H132*F132 -> 2,433.00
A133: 131 | B133: UPVC给水管正三通 | C133: 五金材料 | D133: 联塑/日丰/南亚 | E133: dn20,PN16 | F133: 20 | G133: 只 | H133: 1.59 | I133: 31.80
A134: 132 | B134: UPVC给水管正三通 | C134: 五金材料 | D134: 联塑/日丰/南亚 | E134: dn25,PN16 | F134: 20 | G134: 只 | H134: 2.38 | I134: 47.60
A135: 133 | B135: UPVC给水管正三通 | C135: 五金材料 | D135: 联塑/日丰/南亚 | E135: dn32,PN16 | F135: 20 | G135: 只 | H135: 2.38 | I135: 47.60
A136: 134 | B136: UPVC给水管正三通 | C136: 五金材料 | D136: 联塑/日丰/南亚 | E136: dn40,PN16 | F136: 20 | G136: 只 | H136: 3.97 | I136: 79.40
A137: 135 | B137: UPVC给水管正三通 | C137: 五金材料 | D137: 联塑/日丰/南亚 | E137: dn50,PN16 | F137: 20 | G137: 只 | H137: 6.36 | I137: 127.20
A138: 136 | B138: UPVC给水管正三通 | C138: 五金材料 | D138: 联塑/日丰/南亚 | E138: dn63,PN16 | F138: 35 | G138: 只 | H138: 10.33 | I138: 361.55
A139: 137 | B139: UPVC给水管正三通 | C139: 五金材料 | D139: 联塑/日丰/南亚 | E139: dn75,PN16 | F139: 35 | G139: 只 | H139: 15.10 | I139: 528.50
A140: 138 | B140: UPVC给水管正三通 | C140: 五金材料 | D140: 联塑/日丰/南亚 | E140: dn90,PN16 | F140: 35 | G140: 只 | H140: 22.26 | I140: 779.10
A141: 139 | B141: UPVC给水管正三通 | C141: 五金材料 | D141: 联塑/日丰/南亚 | E141: dn110,PN16 | F141: 35 | G141: 只 | H141: 38.96 | I141: 1,363.60
A142: 140 | B142: UPVC给水管正三通 | C142: 五金材料 | D142: 联塑/日丰/南亚 | E142: dn125,PN16 | F142: 20 | G142: 只 | H142: 81.89 | I142: 1,637.80
A143: 141 | B143: UPVC给水管正三通 | C143: 五金材料 | D143: 联塑/日丰/南亚 | E143: dn140,PN16 | F143: 20 | G143: 只 | H143: 89.06 | I143: 1,781.20
A144: 142 | B144: UPVC给水管正三通 | C144: 五金材料 | D144: 联塑/日丰/南亚 | E144: dn160,PN16 | F144: 20 | G144: 只 | H144: 106.54 | I144: 2,130.80
A145: 143 | B145: UPVC给水管正三通 | C145: 五金材料 | D145: 联塑/日丰/南亚 | E145: dn200,PN16 | F145: 20 | G145: 只 | H145: 192.41 | I145: 3,848.20
A146: 144 | B146: UPVC给水管异径三通 | C146: 五金材料 | D146: 联塑/日丰/南亚 | E146: dn32转dn20，PN16 | F146: 10 | G146: 只 | H146: 2.02 | I146: 20.20
A147: 145 | B147: UPVC给水管异径三通 | C147: 五金材料 | D147: 联塑/日丰/南亚 | E147: dn40转dn20，PN16 | F147: 10 | G147: 只 | H147: 2.53 | I147: 25.30
A148: 146 | B148: UPVC给水管异径三通 | C148: 五金材料 | D148: 联塑/日丰/南亚 | E148: dn40转dn32，PN16 | F148: 10 | G148: 只 | H148: 3.03 | I148: 30.30
A149: 147 | B149: UPVC给水管异径三通 | C149: 五金材料 | D149: 联塑/日丰/南亚 | E149: dn50转dn40，PN16 | F149: 10 | G149: 只 | H149: 5.06 | I149: 50.60
A150: 148 | B150: UPVC给水管异径三通 | C150: 五金材料 | D150: 联塑/日丰/南亚 | E150: dn50转dn32，PN16 | F150: 10 | G150: 只 | H150: 4.77 | I150: 47.70
A151: 149 | B151: UPVC给水管异径三通 | C151: 五金材料 | D151: 联塑/日丰/南亚 | E151: dn63转dn50，PN16 | F151: 10 | G151: 只 | H151: 7.96 | I151: 79.60
A152: 150 | B152: UPVC给水管异径三通 | C152: 五金材料 | D152: 联塑/日丰/南亚 | E152: dn75转dn63，PN16 | F152: 10 | G152: 只 | H152: 13.52 | I152: 135.20
A153: 151 | B153: UPVC给水管异径三通 | C153: 五金材料 | D153: 联塑/日丰/南亚 | E153: dn90转dn75，PN16 | F153: 10 | G153: 只 | H153: 19.08 | I153: 190.80
A154: 152 | B154: UPVC给水管异径三通 | C154: 五金材料 | D154: 联塑/日丰/南亚 | E154: dn110转dn90，PN16 | F154: 10 | G154: 只 | H154: 32.60 | I154: 326.00
A155: 153 | B155: UPVC给水管异径三通 | C155: 五金材料 | D155: 联塑/日丰/南亚 | E155: dn125转dn110，PN16 | F155: 10 | G155: 只 | H155: 63.68 | I155: 636.80
A156: 154 | B156: UPVC给水管异径三通 | C156: 五金材料 | D156: 联塑/日丰/南亚 | E156: dn140转dn125，PN16 | F156: 10 | G156: 只 | H156: 77.83 | I156: 778.30
A157: 155 | B157: UPVC给水管异径三通 | C157: 五金材料 | D157: 联塑/日丰/南亚 | E157: Dn160转Dn110，PN16 | F157: 10 | G157: 只 | H157: 91.98 | I157: 919.80
A158: 156 | B158: UPVC给水管异径三通 | C158: 五金材料 | D158: 联塑/日丰/南亚 | E158: Dn200转Dn160，PN16 | F158: 10 | G158: 只 | H158: 162.73 | I158: 1,627.30
A159: 157 | B159: UPVC带法兰接头 | C159: 五金材料 | D159: 联塑/日丰/南亚 | E159: dn20,PN16 | F159: 10 | G159: 只 | H159: 9.54 | I159: 95.40
A160: 158 | B160: UPVC带法兰接头 | C160: 五金材料 | D160: 联塑/日丰/南亚 | E160: dn25,PN16 | F160: 10 | G160: 只 | H160: 11.92 | I160: 119.20
A161: 159 | B161: UPVC带法兰接头 | C161: 五金材料 | D161: 联塑/日丰/南亚 | E161: dn32,PN16 | F161: 10 | G161: 只 | H161: 11.92 | I161: 119.20
A162: 160 | B162: UPVC带法兰接头 | C162: 五金材料 | D162: 联塑/日丰/南亚 | E162: dn40,PN16 | F162: 10 | G162: 只 | H162: 15.90 | I162: 159.00
A163: 161 | B163: UPVC带法兰接头 | C163: 五金材料 | D163: 联塑/日丰/南亚 | E163: dn50,PN16 | F163: 10 | G163: 只 | H163: 17.49 | I163: 174.90
A164: 162 | B164: UPVC带法兰接头 | C164: 五金材料 | D164: 联塑/日丰/南亚 | E164: dn63,PN16 | F164: 10 | G164: 只 | H164: 22.26 | I164: 222.60
A165: 163 | B165: UPVC带法兰接头 | C165: 五金材料 | D165: 联塑/日丰/南亚 | E165: dn75,PN16 | F165: 10 | G165: 只 | H165: 26.23 | I165: 262.30
A166: 164 | B166: UPVC带法兰接头 | C166: 五金材料 | D166: 联塑/日丰/南亚 | E166: dn90,PN16 | F166: 10 | G166: 只 | H166: 34.19 | I166: 341.90
A167: 165 | B167: UPVC带法兰接头 | C167: 五金材料 | D167: 联塑/日丰/南亚 | E167: dn110,PN16 | F167: 10 | G167: 只 | H167: 49.30 | I167: 493.00
A168: 166 | B168: UPVC带法兰接头 | C168: 五金材料 | D168: 联塑/日丰/南亚 | E168: dn125,PN16 | F168: 10 | G168: 只 | H168: 62.81 | I168: 628.10
A169: 167 | B169: UPVC带法兰接头 | C169: 五金材料 | D169: 联塑/日丰/南亚 | E169: dn140,PN16 | F169: 10 | G169: 只 | H169: 81.10 | I169: 811.00
A170: 168 | B170: UPVC带法兰接头 | C170: 五金材料 | D170: 联塑/日丰/南亚 | E170: dn160,PN16 | F170: 10 | G170: 只 | H170: 107.33 | I170: 1,073.30
A171: 169 | B171: UPVC带法兰接头 | C171: 五金材料 | D171: 联塑/日丰/南亚 | E171: dn200,PN16 | F171: 10 | G171: 只 | H171: 128.81 | I171: 1,288.10
A172: 170 | B172: UPVC活接 | C172: 五金材料 | D172: 联塑/日丰/南亚 | E172: dn20,PN16 | F172: 20 | G172: 只 | H172: 3.03 | I172: 60.60
A173: 171 | B173: UPVC活接 | C173: 五金材料 | D173: 联塑/日丰/南亚 | E173: dn25,PN16 | F173: 20 | G173: 只 | H173: 3.97 | I173: 79.40
A174: 172 | B174: UPVC活接 | C174: 五金材料 | D174: 联塑/日丰/南亚 | E174: dn32,PN16 | F174: 20 | G174: 只 | H174: 6.36 | I174: 127.20
A175: 173 | B175: UPVC活接 | C175: 五金材料 | D175: 联塑/日丰/南亚 | E175: dn40,PN16 | F175: 20 | G175: 只 | H175: 9.54 | I175: 190.80
A176: 174 | B176: UPVC活接 | C176: 五金材料 | D176: 联塑/日丰/南亚 | E176: dn50,PN16 | F176: 20 | G176: 只 | H176: 12.72 | I176: 254.40
A177: 175 | B177: UPVC活接 | C177: 五金材料 | D177: 联塑/日丰/南亚 | E177: dn63,PN16 | F177: 20 | G177: 只 | H177: 28.63 | I177: 572.60
A178: 176 | B178: UPVC活接 | C178: 五金材料 | D178: 联塑/日丰/南亚 | E178: dn75,PN16 | F178: 20 | G178: 只 | H178: 37.36 | I178: 747.20
A179: 177 | B179: UPVC活接 | C179: 五金材料 | D179: 联塑/日丰/南亚 | E179: dn90,PN16 | F179: 20 | G179: 只 | H179: 62.81 | I179: 1,256.20
A180: 178 | B180: UPVC活接 | C180: 五金材料 | D180: 联塑/日丰/南亚 | E180: dn110,PN16 | F180: 20 | G180: 只 | H180: 80.86 | I180: 1,617.20
A181: 179 | B181: UPVC活接 | C181: 五金材料 | D181: 联塑/日丰/南亚 | E181: dn125,PN16 | F181: 20 | G181: 只 | H181: 81.10 | I181: 1,622.00
A182: 180 | B182: UPVC补芯 | C182: 五金材料 | D182: 联塑/日丰/南亚 | E182: dn25转dn20 | F182: 20 | G182: 只 | H182: 0.79 | I182: 15.80
A183: 181 | B183: UPVC补芯 | C183: 五金材料 | D183: 联塑/日丰/南亚 | E183: dn32转dn25 | F183: 20 | G183: 只 | H183: 0.79 | I183: 15.80
A184: 182 | B184: UPVC补芯 | C184: 五金材料 | D184: 联塑/日丰/南亚 | E184: dn40转dn32 | F184: 20 | G184: 只 | H184: 1.59 | I184: 31.80
A185: 183 | B185: UPVC补芯 | C185: 五金材料 | D185: 联塑/日丰/南亚 | E185: dn50转dn40 | F185: 20 | G185: 只 | H185: 1.59 | I185: 31.80
A186: 184 | B186: UPVC补芯 | C186: 五金材料 | D186: 联塑/日丰/南亚 | E186: dn63转dn50 | F186: 20 | G186: 只 | H186: 3.97 | I186: 79.40
A187: 185 | B187: UPVC补芯 | C187: 五金材料 | D187: 联塑/日丰/南亚 | E187: dn75转dn63 | F187: 20 | G187: 只 | H187: 4.77 | I187: 95.40
A188: 186 | B188: UPVC补芯 | C188: 五金材料 | D188: 联塑/日丰/南亚 | E188: dn90转dn75 | F188: 20 | G188: 只 | H188: 8.75 | I188: 175.00
A189: 187 | B189: UPVC补芯 | C189: 五金材料 | D189: 联塑/日丰/南亚 | E189: dn110转dn90 | F189: 20 | G189: 只 | H189: 14.31 | I189: 286.20
A190: 188 | B190: UPVC补芯 | C190: 五金材料 | D190: 联塑/日丰/南亚 | E190: dn125转dn110 | F190: 20 | G190: 只 | H190: 23.86 | I190: 477.20
A191: 189 | B191: UPVC补芯 | C191: 五金材料 | D191: 联塑/日丰/南亚 | E191: dn140转dn125 | F191: 20 | G191: 只 | H191: 35.78 | I191: 715.60
A192: 190 | B192: UPVC补芯 | C192: 五金材料 | D192: 联塑/日丰/南亚 | E192: dn160转dn140 | F192: 20 | G192: 只 | H192: 41.34 | I192: 826.80
A193: 191 | B193: UPVC管帽 | C193: 五金材料 | D193: 联塑/日丰/南亚 | E193: dn20 | F193: 20 | G193: 只 | H193: 1.52 | I193: 30.40
A194: 192 | B194: UPVC管帽 | C194: 五金材料 | D194: 联塑/日丰/南亚 | E194: dn25 | F194: 20 | G194: 只 | H194: 1.59 | I194: 31.80
A195: 193 | B195: UPVC管帽 | C195: 五金材料 | D195: 联塑/日丰/南亚 | E195: dn32 | F195: 20 | G195: 只 | H195: 1.59 | I195: 31.80
A196: 194 | B196: UPVC管帽 | C196: 五金材料 | D196: 联塑/日丰/南亚 | E196: dn40 | F196: 20 | G196: 只 | H196: 1.59 | I196: =H196*F196 -> 31.80
A197: 195 | B197: UPVC管帽 | C197: 五金材料 | D197: 联塑/日丰/南亚 | E197: dn50 | F197: 20 | G197: 只 | H197: 2.38 | I197: 47.60
A198: 196 | B198: UPVC管帽 | C198: 五金材料 | D198: 联塑/日丰/南亚 | E198: dn63 | F198: 20 | G198: 只 | H198: 3.97 | I198: 79.40
A199: 197 | B199: UPVC管帽 | C199: 五金材料 | D199: 联塑/日丰/南亚 | E199: dn75 | F199: 20 | G199: 只 | H199: 7.15 | I199: 143.00
A200: 198 | B200: UPVC管帽 | C200: 五金材料 | D200: 联塑/日丰/南亚 | E200: dn90 | F200: 20 | G200: 只 | H200: 11.13 | I200: 222.60
... 625 more rows
